Department Family,Entity,Transaction Date,Expense Type,Expense Area,Supplier Name,Transaction Number, Amount (Sterling) 
DFID,DFID,18/03/2011,Accommodation costs,Asia Division,Angela Cheung,400149622,"27,497.88"
DFID,DFID,09/03/2011,Accommodation costs,East and Central Africa,Azalech Tibebu,400147515,"29,671.43"
DFID,DFID,08/03/2011,Accommodation costs,Asia Division,BRITISH HIGH COMMISSION,400147116,"46,598.35"
DFID,DFID,26/03/2011,Accommodation costs,Human Resources Division,CITY OF WESTMINSTER,400151526,"35,875.00"
DFID,DFID,28/03/2011,Accommodation costs,Human Resources Division,CITY OF WESTMINSTER,400151739,"2,483,919.70"
DFID,DFID,09/03/2011,Accommodation costs,"Security & Humanitarian, Middle East, Caribbean & Overseas Territories Division",FOREIGN AND COMMONWEALTH OFFICE,400147520,7.46
DFID,DFID,09/03/2011,Accommodation costs,International Relations Division,FOREIGN AND COMMONWEALTH OFFICE,400147520,141.15
DFID,DFID,14/03/2011,Accommodation costs,West and Southern Africa,JAT Constroi,400147976,"20,756.85"
DFID,DFID,14/03/2011,Accommodation costs,West and Southern Africa,JAT Constroi,400147976,"8,895.79"
DFID,DFID,18/03/2011,Accommodation costs,Asia Division,Jia Ao Real Extate Development,400149569,"11,821.33"
DFID,DFID,18/03/2011,Accommodation costs,Asia Division,Jia Ao Real Extate Development,400149569,"23,642.67"
DFID,DFID,16/03/2011,Accommodation costs,Human Resources Division,MITIE Technical Facilities Management Ltd,400149032,"15,741.77"
DFID,DFID,16/03/2011,Accommodation costs,Human Resources Division,MITIE Technical Facilities Management Ltd,400149032,"9,184.06"
DFID,DFID,31/03/2011,Accommodation costs,Human Resources Division,Natwest Government Procurement Card,100037,551.92
DFID,DFID,31/03/2011,Accommodation costs,"Security & Humanitarian, Middle East, Caribbean & Overseas Territories Division",Natwest Government Procurement Card,100037,"-1,246.20"
DFID,DFID,18/03/2011,Accommodation costs,Human Resources Division,ROBSON ASSOCIATES,400149790,"1,210,540.00"
DFID,DFID,18/03/2011,Accommodation costs,Human Resources Division,ROBSON ASSOCIATES,400149792,"100,881.00"
DFID,DFID,25/03/2011,Aid to civil society organisations / NGOs,East and Central Africa, BASEL INSTITUTE ON GOVERNANCE,400150986,"45,694.34"
DFID,DFID,31/03/2011,Aid to civil society organisations / NGOs,East and Central Africa, EASSI,400152500,"41,620.00"
DFID,DFID,25/03/2011,Aid to civil society organisations / NGOs,East and Central Africa, HANDICAP INTERNATIONAL,400150973,"45,381.76"
DFID,DFID,04/03/2011,Aid to civil society organisations / NGOs,Asia Division, MERLIN,400146785,"136,669.00"
DFID,DFID,23/03/2011,Aid to civil society organisations / NGOs,Policy and Research Directorate, Natural Environment Research Council,400150594,"122,074.83"
DFID,DFID,15/03/2011,Aid to civil society organisations / NGOs,International Relations Division, New York University,400148400,"200,000.00"
DFID,DFID,30/03/2011,Aid to civil society organisations / NGOs,West and Southern Africa, OXFAM,400151381,"200,484.54"
DFID,DFID,17/03/2011,Aid to civil society organisations / NGOs,Asia Division, SOLIDARITES INTERNATIONAL(GBP),400149057,"488,381.00"
DFID,DFID,21/03/2011,Aid to civil society organisations / NGOs,Asia Division, UNICEF,400150012,"184,045.00"
DFID,DFID,23/03/2011,Aid to civil society organisations / NGOs,Policy and Research Directorate, University Of Oxford,400150640,"125,000.00"
DFID,DFID,28/03/2011,Aid to civil society organisations / NGOs,Policy and Research Directorate, University Of Oxford,400151652,"77,824.46"
DFID,DFID,30/03/2011,Aid to civil society organisations / NGOs,Policy and Research Directorate, WORLD RESOURCES INSTITUTE (USD),400151664,"44,999.44"
DFID,DFID,03/03/2011,Aid to civil society organisations / NGOs,West and Southern Africa,A A PeaceWorks,400146120,"61,035.50"
DFID,DFID,04/03/2011,Aid to civil society organisations / NGOs,Policy and Research Directorate,AATF,400146525,"27,993.25"
DFID,DFID,09/03/2011,Aid to civil society organisations / NGOs,West and Southern Africa,Action Against Hunger - USA,400147224,"314,661.17"
DFID,DFID,16/03/2011,Aid to civil society organisations / NGOs,East and Central Africa,Action Against Hunger - USA,400148603,"203,988.00"
DFID,DFID,03/03/2011,Aid to civil society organisations / NGOs,West and Southern Africa,ACTION AGAINST HUNGER UK,400146482,"977,537.00"
DFID,DFID,30/03/2011,Aid to civil society organisations / NGOs,Asia Division,ActionAid India,400152058,"280,025.83"
DFID,DFID,25/03/2011,Aid to civil society organisations / NGOs,West and Southern Africa,African Foundation for Development Sierra Leone ,400151367,"32,170.79"
DFID,DFID,23/03/2011,Aid to civil society organisations / NGOs,East and Central Africa,AFRICAN MEDICAL RESEARCH FOUNDATION,400150389,"961,041.22"
DFID,DFID,03/03/2011,Aid to civil society organisations / NGOs,East and Central Africa,AFRICAN MONITOR,400146097,"26,462.00"
DFID,DFID,16/03/2011,Aid to civil society organisations / NGOs,East and Central Africa,Aga Khan Foundation (Tanzania),400148682,"216,235.20"
DFID,DFID,23/03/2011,Aid to civil society organisations / NGOs,West and Southern Africa,AgDevCo,400150722,"500,000.00"
DFID,DFID,23/03/2011,Aid to civil society organisations / NGOs,West and Southern Africa,AgDevCo,400150722,"2,000,000.00"
DFID,DFID,21/03/2011,Aid to civil society organisations / NGOs,East and Central Africa,ALLIANCE FOR A GREEN REVOLUTION IN AFRICA,400149656,"132,883.96"
DFID,DFID,04/03/2011,Aid to civil society organisations / NGOs,"Security & Humanitarian, Middle East, Caribbean & Overseas Territories Division",ALTUS GLOBAL ALLIANCE,400146492,"56,067.00"
DFID,DFID,15/03/2011,Aid to civil society organisations / NGOs,West and Southern Africa,Banja La Mtsogolo,400148527,"257,339.00"
DFID,DFID,16/03/2011,Aid to civil society organisations / NGOs,West and Southern Africa,Banja La Mtsogolo,400148935,"620,680.12"
DFID,DFID,30/03/2011,Aid to civil society organisations / NGOs,East and Central Africa,British Council,400152376,"31,044.01"
DFID,DFID,07/03/2011,Aid to civil society organisations / NGOs,Asia Division,BRITISH COUNCIL (INDONESIA),400147005,"73,647.00"
DFID,DFID,29/03/2011,Aid to civil society organisations / NGOs,West and Southern Africa,CAFOD,400152003,"516,061.00"
DFID,DFID,04/03/2011,Aid to civil society organisations / NGOs,"Security & Humanitarian, Middle East, Caribbean & Overseas Territories Division",CARE INTERNATIONAL,400146758,"793,765.00"
DFID,DFID,16/03/2011,Aid to civil society organisations / NGOs,"Security & Humanitarian, Middle East, Caribbean & Overseas Territories Division",CARE INTERNATIONAL,400148282,"195,092.60"
DFID,DFID,18/03/2011,Aid to civil society organisations / NGOs,West and Southern Africa,CARE INTERNATIONAL,400149740,"359,358.33"
DFID,DFID,24/03/2011,Aid to civil society organisations / NGOs,Policy and Research Directorate,Centre for International Development and Training (CIDT),400150686,"95,000.00"
DFID,DFID,22/03/2011,Aid to civil society organisations / NGOs,"Security & Humanitarian, Middle East, Caribbean & Overseas Territories Division",Chatham House Enterprises,400150442,"40,907.47"
DFID,DFID,07/03/2011,Aid to civil society organisations / NGOs,Asia Division,CHRISTIAN AID,400146470,"404,350.00"
DFID,DFID,15/03/2011,Aid to civil society organisations / NGOs,Asia Division,CHRISTIAN AID,400148801,"117,645.97"
DFID,DFID,24/03/2011,Aid to civil society organisations / NGOs,Finance and Corporate Performance Division,CIPFA,400150771,"85,000.00"
DFID,DFID,31/03/2011,Aid to civil society organisations / NGOs,Asia Division,CLINTON FOUNDATION,400152440,"773,525.44"
DFID,DFID,30/03/2011,Aid to civil society organisations / NGOs,Policy and Research Directorate,Clinton Health Access Initiative,400151535,"107,674.40"
DFID,DFID,15/03/2011,Aid to civil society organisations / NGOs,Policy and Research Directorate,COMIC RELIEF,400148638,"1,750,000.00"
DFID,DFID,30/03/2011,Aid to civil society organisations / NGOs,Communications Division,COMMONWEALTH BROADCASTING ASSOCIATIO,400152538,"101,737.54"
DFID,DFID,25/03/2011,Aid to civil society organisations / NGOs,West and Southern Africa,CONCERN UNIVERSAL,400151357,"124,353.98"
DFID,DFID,31/03/2011,Aid to civil society organisations / NGOs,"Security & Humanitarian, Middle East, Caribbean & Overseas Territories Division",CONCERN WORLDWIDE,400152823,"121,892.00"
DFID,DFID,26/03/2011,Aid to civil society organisations / NGOs,"Security & Humanitarian, Middle East, Caribbean & Overseas Territories Division",CONCILIATION RESOURCES (IWPR),400151545,"150,000.00"
DFID,DFID,10/03/2011,Aid to civil society organisations / NGOs,Asia Division,DANISH REFUGEE COUNCIL,400147467,"181,910.00"
DFID,DFID,01/03/2011,Aid to civil society organisations / NGOs,"Security & Humanitarian, Middle East, Caribbean & Overseas Territories Division",DCAF,400145509,"125,001.00"
DFID,DFID,01/03/2011,Aid to civil society organisations / NGOs,"Security & Humanitarian, Middle East, Caribbean & Overseas Territories Division",DCAF,400145509,-1
DFID,DFID,02/03/2011,Aid to civil society organisations / NGOs,West and Southern Africa,Energy Research Centre of the Netherlands,400146256,"68,463.73"
DFID,DFID,28/03/2011,Aid to civil society organisations / NGOs,Policy and Research Directorate,Fairtrade Labelling Organizations International e.V.,400151541,"750,000.00"
DFID,DFID,28/03/2011,Aid to civil society organisations / NGOs,West and Southern Africa,FANRPAN,400151521,"73,667.78"
DFID,DFID,02/03/2011,Aid to civil society organisations / NGOs,East and Central Africa,FINANCIAL SECTOR DEEPENING,400145285,"2,015,250.00"
DFID,DFID,07/03/2011,Aid to civil society organisations / NGOs,West and Southern Africa,FinMark  TRUST,400146498,"364,972.46"
DFID,DFID,23/03/2011,Aid to civil society organisations / NGOs,"Security & Humanitarian, Middle East, Caribbean & Overseas Territories Division",FLACSO-Chile,400149982,"61,451.48"
DFID,DFID,03/03/2011,Aid to civil society organisations / NGOs,Policy and Research Directorate,Global Development Network,400146070,"205,000.00"
DFID,DFID,11/03/2011,Aid to civil society organisations / NGOs,Evaluation Department,GLOBAL DEVELOPMENT NETWORK (3ie),400147189,"1,000,000.00"
DFID,DFID,11/03/2011,Aid to civil society organisations / NGOs,Policy and Research Directorate,GLOBAL DEVELOPMENT NETWORK (3ie),400147189,"4,076,700.00"
DFID,DFID,11/03/2011,Aid to civil society organisations / NGOs,West and Southern Africa,GLOBAL DEVELOPMENT NETWORK (3ie),400147189,"500,000.00"
DFID,DFID,15/03/2011,Aid to civil society organisations / NGOs,Policy and Research Directorate,GLOBAL DEVELOPMENT NETWORK (3ie),400148334,"833,300.00"
DFID,DFID,10/03/2011,Aid to civil society organisations / NGOs,Asia Division,Harewelle International Limited.,400147868,"672,338.01"
DFID,DFID,15/03/2011,Aid to civil society organisations / NGOs,Asia Division,Harewelle International Limited.,400148786,"669,252.45"
DFID,DFID,15/03/2011,Aid to civil society organisations / NGOs,Asia Division,HEALTH POVERTY ACTION,400148046,"141,743.00"
DFID,DFID,14/03/2011,Aid to civil society organisations / NGOs,West and Southern Africa,Health Reform Foundation of Nigeria,400148078,"151,965.06"
DFID,DFID,02/03/2011,Aid to civil society organisations / NGOs,Policy and Research Directorate,ICAR (UK),400145799,"40,000.00"
DFID,DFID,03/03/2011,Aid to civil society organisations / NGOs,East and Central Africa,Ifakara Health Institute,400146187,"893,976.55"
DFID,DFID,02/03/2011,Aid to civil society organisations / NGOs,Policy and Research Directorate,IMPERIAL COLLEGE LONDON,400146134,"-96,026.98"
DFID,DFID,02/03/2011,Aid to civil society organisations / NGOs,Policy and Research Directorate,IMPERIAL COLLEGE LONDON,400146134,"381,247.25"
DFID,DFID,22/03/2011,Aid to civil society organisations / NGOs,Policy and Research Directorate,INSTITUTE OF DEV  STUDIES UNIVER,400150367,"838,827.49"
DFID,DFID,18/03/2011,Aid to civil society organisations / NGOs,Policy and Research Directorate,Institute of Development Studies.,400149779,"34,231.00"
DFID,DFID,21/03/2011,Aid to civil society organisations / NGOs,West and Southern Africa,INSTITUTE OF ECONOMICS AND SOCIAL STUDIES,400149816,"31,248.98"
DFID,DFID,16/03/2011,Aid to civil society organisations / NGOs,West and Southern Africa,Institute of Governance and Social Research,400148099,"267,360.86"
DFID,DFID,07/03/2011,Aid to civil society organisations / NGOs,Asia Division,International Crisis Group,400146765,"54,094.00"
DFID,DFID,22/03/2011,Aid to civil society organisations / NGOs,East and Central Africa,International Institute for Environment and Development (IIED),400150366,"47,536.00"
DFID,DFID,24/03/2011,Aid to civil society organisations / NGOs,Policy and Research Directorate,INTERNATIONAL INSTITUTE FOR SUSTAINABLE DEVELOPMENT ,400150576,"29,662.00"
DFID,DFID,23/03/2011,Aid to civil society organisations / NGOs,Policy and Research Directorate,International Planned Parent,400150725,"400,000.00"
DFID,DFID,23/03/2011,Aid to civil society organisations / NGOs,Policy and Research Directorate,International Planned Parent,400150727,"2,150,000.00"
DFID,DFID,10/03/2011,Aid to civil society organisations / NGOs,West and Southern Africa,INTERNATIONAL RESCUE COMMITTEE UK,400147910,"3,983,704.00"
DFID,DFID,21/03/2011,Aid to civil society organisations / NGOs,Asia Division,INTERNATIONAL RESCUE COMMITTEE UK,400150030,"494,000.00"
DFID,DFID,23/03/2011,Aid to civil society organisations / NGOs,Asia Division,INTERNATIONAL RESCUE COMMITTEE UK,400150770,"235,682.00"
DFID,DFID,14/03/2011,Aid to civil society organisations / NGOs,West and Southern Africa,IPAS,400148079,"706,506.39"
DFID,DFID,22/03/2011,Aid to civil society organisations / NGOs,East and Central Africa,KINGS COLLEGE LONDON,400150294,"53,829.00"
DFID,DFID,04/03/2011,Aid to civil society organisations / NGOs,Policy and Research Directorate,KPMG DEVELOPMENT SERVICE,400146814,"1,130,480.91"
DFID,DFID,14/03/2011,Aid to civil society organisations / NGOs,Policy and Research Directorate,KPMG DEVELOPMENT SERVICE,400148298,"200,074.59"
DFID,DFID,18/03/2011,Aid to civil society organisations / NGOs,Policy and Research Directorate,KPMG DEVELOPMENT SERVICE,400149814,"3,155,728.49"
DFID,DFID,03/03/2011,Aid to civil society organisations / NGOs,West and Southern Africa,LONDON SCHOOL OF HYGIENE AND TR,400146449,"40,377.00"
DFID,DFID,24/03/2011,Aid to civil society organisations / NGOs,West and Southern Africa,MARIE STOPES INTERNATIONAL,400150768,"171,912.00"
DFID,DFID,21/03/2011,Aid to civil society organisations / NGOs,Asia Division,MAXWELL STAMP PLC,400150058,"760,736.87"
DFID,DFID,23/03/2011,Aid to civil society organisations / NGOs,Asia Division,MAXWELL STAMP PLC,400150310,"231,406.71"
DFID,DFID,24/03/2011,Aid to civil society organisations / NGOs,East and Central Africa,Medecins du Monde UK International Funds,400150960,"179,030.00"
DFID,DFID,14/03/2011,Aid to civil society organisations / NGOs,East and Central Africa,MERCY CORPS,400148294,"229,521.00"
DFID,DFID,21/03/2011,Aid to civil society organisations / NGOs,Asia Division,MERCY CORPS,400150019,"351,442.00"
DFID,DFID,24/03/2011,Aid to civil society organisations / NGOs,Policy and Research Directorate,NATURAL RESOURCES INSTITUTE,400151134,"400,000.00"
DFID,DFID,28/03/2011,Aid to civil society organisations / NGOs,West and Southern Africa,NDI,400151547,"118,369.00"
DFID,DFID,25/03/2011,Aid to civil society organisations / NGOs,Policy and Research Directorate,OVERSEAS DEVELOPMENT INSTITUTE,400151423,"165,302.24"
DFID,DFID,26/03/2011,Aid to civil society organisations / NGOs,International Relations Division,OVERSEAS DEVELOPMENT INSTITUTE (ODI),400151531,"109,080.06"
DFID,DFID,08/03/2011,Aid to civil society organisations / NGOs,East and Central Africa,OXFAM,400146777,"356,136.00"
DFID,DFID,10/03/2011,Aid to civil society organisations / NGOs,Asia Division,OXFAM,400147845,"120,000.00"
DFID,DFID,24/03/2011,Aid to civil society organisations / NGOs,West and Southern Africa,OXFAM,400150935,"328,845.00"
DFID,DFID,01/03/2011,Aid to civil society organisations / NGOs,Asia Division,OXFAM (General Account),400145878,"52,482.27"
DFID,DFID,15/03/2011,Aid to civil society organisations / NGOs,Asia Division,Oxfam (India) Trust,400148817,"254,296.00"
DFID,DFID,07/03/2011,Aid to civil society organisations / NGOs,East and Central Africa,OXFAM INSTITUTIONAL INCOME ACCOUNT,400146877,"37,447.00"
DFID,DFID,11/03/2011,Aid to civil society organisations / NGOs,West and Southern Africa,Panos (Southern Africa),400147898,"29,068.00"
DFID,DFID,11/03/2011,Aid to civil society organisations / NGOs,Policy and Research Directorate,PATH (USD ACCOUNT),400148163,"375,000.00"
DFID,DFID,25/03/2011,Aid to civil society organisations / NGOs,West and Southern Africa,PLAN INTERNATIONAL UK,400151283,"377,098.00"
DFID,DFID,23/03/2011,Aid to civil society organisations / NGOs,East and Central Africa,POPULATION  SERVICES INTERNATIONAL,400150319,"490,975.00"
DFID,DFID,15/03/2011,Aid to civil society organisations / NGOs,Asia Division,Population Council,400148394,"34,423.00"
DFID,DFID,18/03/2011,Aid to civil society organisations / NGOs,Policy and Research Directorate,Population Council,400149422,"244,812.20"
DFID,DFID,21/03/2011,Aid to civil society organisations / NGOs,Asia Division,Population Council,400149773,"41,511.00"
DFID,DFID,28/03/2011,Aid to civil society organisations / NGOs,West and Southern Africa,POPULATION SERVICES INTER,400151234,"71,874.81"
DFID,DFID,28/03/2011,Aid to civil society organisations / NGOs,West and Southern Africa,POPULATION SERVICES INTER,400151234,"331,681.13"
DFID,DFID,21/03/2011,Aid to civil society organisations / NGOs,"Security & Humanitarian, Middle East, Caribbean & Overseas Territories Division",PRACTICAL ACTION LTD,400150069,"39,951.28"
DFID,DFID,17/03/2011,Aid to civil society organisations / NGOs,East and Central Africa,RED R,400149387,"169,010.72"
DFID,DFID,07/03/2011,Aid to civil society organisations / NGOs,"Security & Humanitarian, Middle East, Caribbean & Overseas Territories Division",REFUGEE STUDIES CENTRE,400146906,"108,277.61"
DFID,DFID,14/03/2011,Aid to civil society organisations / NGOs,East and Central Africa,SA INSTITUTE OF INTERNATIONAL AFFAIRS,400148287,"75,106.46"
DFID,DFID,24/03/2011,Aid to civil society organisations / NGOs,West and Southern Africa,SAfAIDS,400150738,"144,578.00"
DFID,DFID,21/03/2011,Aid to civil society organisations / NGOs,Asia Division,SAFERWORLD,400149950,"173,491.00"
DFID,DFID,24/03/2011,Aid to civil society organisations / NGOs,East and Central Africa,SAFERWORLD,400150952,"85,000.00"
DFID,DFID,24/03/2011,Aid to civil society organisations / NGOs,East and Central Africa,SAFERWORLD,400150952,"15,029.00"
DFID,DFID,17/03/2011,Aid to civil society organisations / NGOs,Western Asia and Stabilisation Division,Sarhad Rural Support Programme (SRSP),400149001,"310,013.00"
DFID,DFID,10/03/2011,Aid to civil society organisations / NGOs,Asia Division,SAVE THE CHILDREN,400147460,"500,000.00"
DFID,DFID,18/03/2011,Aid to civil society organisations / NGOs,Asia Division,SAVE THE CHILDREN,400148787,"234,641.00"
DFID,DFID,24/03/2011,Aid to civil society organisations / NGOs,West and Southern Africa,SAVE THE CHILDREN,400151122,"1,274,423.00"
DFID,DFID,18/03/2011,Aid to civil society organisations / NGOs,Policy and Research Directorate,SCIDEV.NET,400149776,"200,000.00"
DFID,DFID,24/03/2011,Aid to civil society organisations / NGOs,Asia Division,SHALOM FOUNDATION,400150646,"61,070.21"
DFID,DFID,01/03/2011,Aid to civil society organisations / NGOs,"Security & Humanitarian, Middle East, Caribbean & Overseas Territories Division",SHELTER CENTRE,400144666,"91,109.87"
DFID,DFID,18/03/2011,Aid to civil society organisations / NGOs,Asia Division,Simon Fraser University,400149682,"71,942.32"
DFID,DFID,15/03/2011,Aid to civil society organisations / NGOs,Asia Division,SKILLSHARE INTERNATIONAL,400148796,"50,383.00"
DFID,DFID,09/03/2011,Aid to civil society organisations / NGOs,East and Central Africa,SOLIDARITES INTERNATIONAL,400147152,"230,674.00"
DFID,DFID,21/03/2011,Aid to civil society organisations / NGOs,West and Southern Africa,Southern Africa Trust,400149954,"123,000.24"
DFID,DFID,22/03/2011,Aid to civil society organisations / NGOs,Western Asia and Stabilisation Division,THE ASIA FOUNDATION,400147468,"1,425,558.65"
DFID,DFID,30/03/2011,Aid to civil society organisations / NGOs,Asia Division,THE ASIA FOUNDATION,400149707,"269,918.00"
DFID,DFID,07/03/2011,Aid to civil society organisations / NGOs,Policy and Research Directorate,The Carter Center,400146219,"300,000.00"
DFID,DFID,29/03/2011,Aid to civil society organisations / NGOs,Asia Division,The Carter Center,400150079,"218,624.05"
DFID,DFID,29/03/2011,Aid to civil society organisations / NGOs,Asia Division,The Carter Center,400150079,"-110,330.05"
DFID,DFID,04/03/2011,Aid to civil society organisations / NGOs,International Finance Division,THE CROWN AGENTS,400146821,"273,656.00"
DFID,DFID,22/03/2011,Aid to civil society organisations / NGOs,Communications Division,THE CROWN AGENTS,400150401,"120,061.48"
DFID,DFID,22/03/2011,Aid to civil society organisations / NGOs,Communications Division,THE CROWN AGENTS,400150402,"117,018.08"
DFID,DFID,22/03/2011,Aid to civil society organisations / NGOs,Communications Division,THE CROWN AGENTS,400150403,"94,878.11"
DFID,DFID,25/03/2011,Aid to civil society organisations / NGOs,Communications Division,THE CROWN AGENTS,400151287,"102,711.58"
DFID,DFID,25/03/2011,Aid to civil society organisations / NGOs,Communications Division,THE CROWN AGENTS,400151292,"28,171.75"
DFID,DFID,04/03/2011,Aid to civil society organisations / NGOs,Policy and Research Directorate,THE GLOBAL FORUM ON MSM AND HIV,400146494,"25,677.53"
DFID,DFID,29/03/2011,Aid to civil society organisations / NGOs,Policy and Research Directorate,THE GLOBAL FORUM ON MSM AND HIV,400151663,"43,981.48"
DFID,DFID,01/03/2011,Aid to civil society organisations / NGOs,Policy and Research Directorate,THE INSTITUTE OF DEVELOPMENT STUDIE,400144817,"318,690.00"
DFID,DFID,30/03/2011,Aid to civil society organisations / NGOs,"Security & Humanitarian, Middle East, Caribbean & Overseas Territories Division",THE INSTITUTE OF DEVELOPMENT STUDIE,400152537,"256,535.00"
DFID,DFID,08/03/2011,Aid to civil society organisations / NGOs,Policy and Research Directorate,The Johns Hopkins University Press,400147016,"234,965.80"
DFID,DFID,14/03/2011,Aid to civil society organisations / NGOs,Communications Division,The Ragdoll Foundation,400148258,"54,652.13"
DFID,DFID,21/03/2011,Aid to civil society organisations / NGOs,East and Central Africa,THE RAINFOREST FOUNDATION UK,400148420,"388,530.97"
DFID,DFID,21/03/2011,Aid to civil society organisations / NGOs,Policy and Research Directorate,THE TIDES CENTER,400149771,"41,944.00"
DFID,DFID,18/03/2011,Aid to civil society organisations / NGOs,Policy and Research Directorate,THE TIDES FOUNDATION,400149300,"48,615.00"
DFID,DFID,01/03/2011,Aid to civil society organisations / NGOs,Policy and Research Directorate,Triple Line Consulting Limited,400145863,"541,834.54"
DFID,DFID,02/03/2011,Aid to civil society organisations / NGOs,Policy and Research Directorate,Triple Line Consulting Limited,400146021,"519,956.45"
DFID,DFID,17/03/2011,Aid to civil society organisations / NGOs,Policy and Research Directorate,Triple Line Consulting Limited,400149436,"417,281.88"
DFID,DFID,24/03/2011,Aid to civil society organisations / NGOs,Asia Division,UCEP - Underpriveliged Childrens Education Programs,400150117,"3,000,000.00"
DFID,DFID,11/03/2011,Aid to civil society organisations / NGOs,International Relations Division,UNESCO,400148054,"113,530.00"
DFID,DFID,21/03/2011,Aid to civil society organisations / NGOs,West and Southern Africa,University of Cape Town,400149799,"858,466.34"
DFID,DFID,31/03/2011,Aid to civil society organisations / NGOs,Policy and Research Directorate,UNIVERSITY OF WOLVERHAMPTON,400152796,"91,500.00"
DFID,DFID,08/03/2011,Aid to civil society organisations / NGOs,East and Central Africa,UNOPS,400145197,"85,000.00"
DFID,DFID,29/03/2011,Aid to civil society organisations / NGOs,Asia Division,VOLUNTARY SERVICE OVERSEAS,400152037,"29,685.00"
DFID,DFID,29/03/2011,Aid to civil society organisations / NGOs,Asia Division,VOLUNTARY SERVICE OVERSEAS,400152041,"32,816.00"
DFID,DFID,26/03/2011,Aid to civil society organisations / NGOs,Communications Division,VSO,400151529,"1,860,025.00"
DFID,DFID,16/03/2011,Aid to civil society organisations / NGOs,Asia Division,WaterAid  (INDIA),400148987,"70,982.00"
DFID,DFID,16/03/2011,Aid to civil society organisations / NGOs,Asia Division,WaterAid  (INDIA),400148993,"69,800.00"
DFID,DFID,15/03/2011,Aid to civil society organisations / NGOs,East and Central Africa,WaterAid (Tanzania),400148589,"82,684.80"
DFID,DFID,18/03/2011,Aid to civil society organisations / NGOs,Asia Division,WWF-UK,400149671,"27,337.63"
DFID,DFID,04/03/2011,Aid to civil society organisations / NGOs,Policy and Research Directorate,YAYASAN KEANEKARAGMAN HAYATI INDONESIA - KEHATI,400143248,"560,401.00"
DFID,DFID,16/03/2011,Aid to international organisations,Policy and Research Directorate,   OECD,400148661,"137,500.00"
DFID,DFID,07/03/2011,Aid to international organisations,Policy and Research Directorate, BILL & MELINDA GATES FOUNDATION (GBP),400146803,"6,500,000.00"
DFID,DFID,07/03/2011,Aid to international organisations,Policy and Research Directorate, BILL & MELINDA GATES FOUNDATION (GBP),400146803,"660,000.00"
DFID,DFID,24/03/2011,Aid to international organisations,Asia Division, Swiss Agency for Development and Cooperation,400148130,"350,000.00"
DFID,DFID,09/03/2011,Aid to international organisations,"Security & Humanitarian, Middle East, Caribbean & Overseas Territories Division", UNHCR,400147435,"1,000,000.00"
DFID,DFID,31/03/2011,Aid to international organisations,"Security & Humanitarian, Middle East, Caribbean & Overseas Territories Division", UNHCR,400152159,"20,000,000.00"
DFID,DFID,09/03/2011,Aid to international organisations,International Relations Division, UNICEF,400147602,"2,600,000.00"
DFID,DFID,16/03/2011,Aid to international organisations,"Security & Humanitarian, Middle East, Caribbean & Overseas Territories Division", UNICEF,400149117,"500,000.00"
DFID,DFID,17/03/2011,Aid to international organisations,Policy and Research Directorate,AERAS Global TB Vaccine Foundation,400149233,"1,100,000.00"
DFID,DFID,17/03/2011,Aid to international organisations,International Relations Division,ASSOCIATION OF COMMONWEALTH UNIVER,400149375,"65,000.00"
DFID,DFID,21/03/2011,Aid to international organisations,International Relations Division,ASSOCIATION OF COMMONWEALTH UNIVER,400150059,"50,000.00"
DFID,DFID,21/03/2011,Aid to international organisations,International Relations Division,ASSOCIATION OF COMMONWEALTH UNIVER,400150064,"35,996.10"
DFID,DFID,21/03/2011,Aid to international organisations,International Relations Division,ASSOCIATION OF COMMONWEALTH UNIVER,400150066,"27,522.42"
DFID,DFID,21/03/2011,Aid to international organisations,International Relations Division,ASSOCIATION OF COMMONWEALTH UNIVER,400150068,"41,470.52"
DFID,DFID,21/03/2011,Aid to international organisations,West and Southern Africa,AUSAID,400149806,"2,000,000.00"
DFID,DFID,04/03/2011,Aid to international organisations,Policy and Research Directorate,BBSRC,400146794,"500,000.00"
DFID,DFID,03/03/2011,Aid to international organisations,International Relations Division,BRITISH COUNCIL,400146388,"1,344,675.46"
DFID,DFID,15/03/2011,Aid to international organisations,International Relations Division,BRITISH COUNCIL,400148712,"1,987,020.05"
DFID,DFID,26/03/2011,Aid to international organisations,International Relations Division,BRITISH COUNCIL,400151508,"1,498,821.85"
DFID,DFID,10/03/2011,Aid to international organisations,Policy and Research Directorate,CABI,400147797,"1,000,000.00"
DFID,DFID,04/03/2011,Aid to international organisations,International Relations Division,CEB SECRETARIAT,400146695,"300,000.00"
DFID,DFID,25/03/2011,Aid to international organisations,West and Southern Africa,COMESA (GBP),400150749,"3,761,009.00"
DFID,DFID,03/03/2011,Aid to international organisations,Policy and Research Directorate,Common Fund for Commodities,400146231,"270,000.00"
DFID,DFID,25/03/2011,Aid to international organisations,International Relations Division,COMMONWEALTH FUND FOR TECHNICAL CO-,400151273,"10,260,224.00"
DFID,DFID,17/03/2011,Aid to international organisations,International Relations Division,COMMONWEALTH YOUTH PROGRAMME,400149440,"850,000.00"
DFID,DFID,09/03/2011,Aid to international organisations,West and Southern Africa,Development Bank of SA,400147451,"131,437.00"
DFID,DFID,17/03/2011,Aid to international organisations,Policy and Research Directorate,Drugs for Neglected Diseases Initiative,400149094,"2,000,000.00"
DFID,DFID,16/03/2011,Aid to international organisations,East and Central Africa,FAO,400148642,"120,000.00"
DFID,DFID,21/03/2011,Aid to international organisations,"Security & Humanitarian, Middle East, Caribbean & Overseas Territories Division",FAO,400149939,"200,000.00"
DFID,DFID,03/03/2011,Aid to international organisations,"Security & Humanitarian, Middle East, Caribbean & Overseas Territories Division",FOOD AND AGRICULTURE ORGANISATION,400146214,"53,600.00"
DFID,DFID,18/03/2011,Aid to international organisations,Policy and Research Directorate,GALVmed,400149684,"630,995.00"
DFID,DFID,04/03/2011,Aid to international organisations,Policy and Research Directorate,Global Forum for Health Research,400146512,"500,000.00"
DFID,DFID,24/03/2011,Aid to international organisations,Policy and Research Directorate,GTZ GmBH Eschborn,400150616,"120,000.00"
DFID,DFID,03/03/2011,Aid to international organisations,International Finance Division,IBRD (HSBC)  C/O THE WORLD BANK,400146553,"4,000,000.00"
DFID,DFID,04/03/2011,Aid to international organisations,Evaluation Department,IBRD (HSBC)  C/O THE WORLD BANK,400146822,"300,000.00"
DFID,DFID,08/03/2011,Aid to international organisations,Asia Division,IBRD (HSBC)  C/O THE WORLD BANK,400147118,"890,000.00"
DFID,DFID,08/03/2011,Aid to international organisations,East and Central Africa,IBRD (HSBC)  C/O THE WORLD BANK,400147143,"800,000.00"
DFID,DFID,09/03/2011,Aid to international organisations,"Security & Humanitarian, Middle East, Caribbean & Overseas Territories Division",IBRD (HSBC)  C/O THE WORLD BANK,400147507,"330,000.00"
DFID,DFID,21/03/2011,Aid to international organisations,Asia Division,IBRD (HSBC)  C/O THE WORLD BANK,400149955,"390,000.00"
DFID,DFID,21/03/2011,Aid to international organisations,Asia Division,IBRD (HSBC)  C/O THE WORLD BANK,400149995,"150,000.00"
DFID,DFID,22/03/2011,Aid to international organisations,Asia Division,IBRD (HSBC)  C/O THE WORLD BANK,400150307,"3,000,000.00"
DFID,DFID,23/03/2011,Aid to international organisations,Asia Division,IBRD (HSBC)  C/O THE WORLD BANK,400150758,"500,000.00"
DFID,DFID,28/03/2011,Aid to international organisations,Policy and Research Directorate,IBRD (HSBC)  C/O THE WORLD BANK,400151135,"64,335.00"
DFID,DFID,26/03/2011,Aid to international organisations,International Finance Division,IBRD (HSBC)  C/O THE WORLD BANK,400151548,"1,500,000.00"
DFID,DFID,30/03/2011,Aid to international organisations,Policy and Research Directorate,IBRD (HSBC)  C/O THE WORLD BANK,400152504,"470,000.00"
DFID,DFID,07/03/2011,Aid to international organisations,"Security & Humanitarian, Middle East, Caribbean & Overseas Territories Division",IBRD HSBC T,400146559,"450,000.00"
DFID,DFID,08/03/2011,Aid to international organisations,Policy and Research Directorate,IBRD HSBC T,400146707,"3,333,334.00"
DFID,DFID,08/03/2011,Aid to international organisations,Policy and Research Directorate,IBRD HSBC T,400146707,"466,666.00"
DFID,DFID,08/03/2011,Aid to international organisations,Asia Division,IBRD HSBC T,400146707,"600,000.00"
DFID,DFID,07/03/2011,Aid to international organisations,Asia Division,IBRD HSBC T,400146977,"5,000,000.00"
DFID,DFID,07/03/2011,Aid to international organisations,Asia Division,IBRD HSBC T,400147011,"3,199,999.00"
DFID,DFID,10/03/2011,Aid to international organisations,Asia Division,IBRD HSBC T,400147786,"700,000.00"
DFID,DFID,10/03/2011,Aid to international organisations,Policy and Research Directorate,IBRD HSBC T,400147823,"500,000.00"
DFID,DFID,11/03/2011,Aid to international organisations,Policy and Research Directorate,IBRD HSBC T,400148172,"10,000,000.00"
DFID,DFID,11/03/2011,Aid to international organisations,East and Central Africa,IBRD HSBC T,400148174,"900,000.00"
DFID,DFID,14/03/2011,Aid to international organisations,Asia Division,IBRD HSBC T,400148359,"800,000.00"
DFID,DFID,15/03/2011,Aid to international organisations,Policy and Research Directorate,IBRD HSBC T,400148726,"310,000.00"
DFID,DFID,15/03/2011,Aid to international organisations,Policy and Research Directorate,IBRD HSBC T,400148726,"166,666.00"
DFID,DFID,15/03/2011,Aid to international organisations,Policy and Research Directorate,IBRD HSBC T,400148736,"280,000.00"
DFID,DFID,15/03/2011,Aid to international organisations,Policy and Research Directorate,IBRD HSBC T,400148736,"166,667.00"
DFID,DFID,15/03/2011,Aid to international organisations,Policy and Research Directorate,IBRD HSBC T,400148743,"166,667.00"
DFID,DFID,15/03/2011,Aid to international organisations,Policy and Research Directorate,IBRD HSBC T,400148743,"310,000.00"
DFID,DFID,15/03/2011,Aid to international organisations,Policy and Research Directorate,IBRD HSBC T,400148745,"100,000.00"
DFID,DFID,17/03/2011,Aid to international organisations,International Finance Division,IBRD HSBC T,400149447,"1,240,000.00"
DFID,DFID,18/03/2011,Aid to international organisations,Asia Division,IBRD HSBC T,400149777,"480,000.00"
DFID,DFID,22/03/2011,Aid to international organisations,International Finance Division,IBRD HSBC T,400150320,"3,000,000.00"
DFID,DFID,22/03/2011,Aid to international organisations,Western Asia and Stabilisation Division,IBRD HSBC T,400150382,"50,000.00"
DFID,DFID,28/03/2011,Aid to international organisations,Policy and Research Directorate,IBRD HSBC T,400151532,"2,000,000.00"
DFID,DFID,29/03/2011,Aid to international organisations,International Finance Division,IBRD HSBC T,400151943,"1,000,000.00"
DFID,DFID,29/03/2011,Aid to international organisations,International Finance Division,IBRD HSBC T,400152027,"30,380,000.00"
DFID,DFID,28/03/2011,Aid to international organisations,International Finance Division,IBRD-IFFIm,400151691,"1,534,075.00"
DFID,DFID,16/03/2011,Aid to international organisations,West and Southern Africa,ILO,400148761,"71,848.00"
DFID,DFID,08/03/2011,Aid to international organisations,East and Central Africa,INFRASTRUCTURE CONSORTIUM FOR AFRICA,400147021,"275,000.00"
DFID,DFID,21/03/2011,Aid to international organisations,International Finance Division,INTER AMERICAN DEV. BANK,400149966,"2,000,000.00"
DFID,DFID,10/03/2011,Aid to international organisations,Policy and Research Directorate,INTERNATIONAL AIDS VACCINE INITIATIV,400147778,"2,000,000.00"
DFID,DFID,26/03/2011,Aid to international organisations,Policy and Research Directorate,INTERNATIONAL CENTRE FOR DIARRO,400151542,"800,000.00"
DFID,DFID,15/03/2011,Aid to international organisations,West and Southern Africa,International Monetary Fund (GBP),400148780,"88,520.00"
DFID,DFID,26/03/2011,Aid to international organisations,"Security & Humanitarian, Middle East, Caribbean & Overseas Territories Division",International Monetary Fund (GBP),400151440,"200,000.00"
DFID,DFID,26/03/2011,Aid to international organisations,Western Asia and Stabilisation Division,International Monetary Fund (GBP),400151440,"200,000.00"
DFID,DFID,26/03/2011,Aid to international organisations,"Security & Humanitarian, Middle East, Caribbean & Overseas Territories Division",International Monetary Fund (GBP),400151440,"200,000.00"
DFID,DFID,26/03/2011,Aid to international organisations,East and Central Africa,International Monetary Fund (GBP),400151440,"200,000.00"
DFID,DFID,24/03/2011,Aid to international organisations,Policy and Research Directorate,International Partnership for Microbicides,400150984,"500,000.00"
DFID,DFID,03/03/2011,Aid to international organisations,Asia Division,IOM,400145554,"713,681.00"
DFID,DFID,04/03/2011,Aid to international organisations,"Security & Humanitarian, Middle East, Caribbean & Overseas Territories Division",IOM (GENEVA),400145526,"938,808.79"
DFID,DFID,30/03/2011,Aid to international organisations,East and Central Africa,Kindom of the Netherlands,400151701,"1,098,125.00"
DFID,DFID,04/03/2011,Aid to international organisations,Policy and Research Directorate,Medicines for Malaria Venture,400146563,"1,500,000.00"
DFID,DFID,21/03/2011,Aid to international organisations,East and Central Africa,NEPAD (International Partnership for Africa Fisheries),400149775,"423,196.00"
DFID,DFID,29/03/2011,Aid to international organisations,"Security & Humanitarian, Middle East, Caribbean & Overseas Territories Division",OFFICE /COORDINATION OF HUMANITARIAN,400151883,"15,000,000.00"
DFID,DFID,25/03/2011,Aid to international organisations,"Security & Humanitarian, Middle East, Caribbean & Overseas Territories Division",Pan American Health Organisation,400150661,"265,000.00"
DFID,DFID,15/03/2011,Aid to international organisations,Policy and Research Directorate,Programme for Appropriate Technology in Health,400148295,"692,677.00"
DFID,DFID,30/03/2011,Aid to international organisations,International Finance Division,SG HAMBROS BANK & TRUST LTD (USD),400151538,"6,000,000.00"
DFID,DFID,30/03/2011,Aid to international organisations,International Finance Division,SG HAMBROS BANK & TRUST LTD (USD),400151539,"6,000,000.00"
DFID,DFID,01/03/2011,Aid to international organisations,International Finance Division,SG HAMBROS TRUST COMPANY LIMITED,400145860,"2,130,000.00"
DFID,DFID,26/03/2011,Aid to international organisations,International Finance Division,SG HAMBROS TRUST COMPANY LIMITED,400151537,"500,000.00"
DFID,DFID,18/03/2011,Aid to international organisations,West and Southern Africa,Southern African Development Community Secretariat,400149434,"98,999.21"
DFID,DFID,25/03/2011,Aid to international organisations,Policy and Research Directorate,The Foundation for Innovative Diagnostics (FIND),400150962,"500,000.00"
DFID,DFID,04/03/2011,Aid to international organisations,Policy and Research Directorate,The Global Alliance for TB Drug Development,400146503,"2,000,000.00"
DFID,DFID,23/03/2011,Aid to international organisations,East and Central Africa,THE INTERNATIONAL COMMITTEE OF THE RED CROSS (ICRC),400150343,"5,500,000.00"
DFID,DFID,31/03/2011,Aid to international organisations,"Security & Humanitarian, Middle East, Caribbean & Overseas Territories Division",THE INTERNATIONAL COMMITTEE OF THE RED CROSS (ICRC),400152727,"25,000,000.00"
DFID,DFID,10/03/2011,Aid to international organisations,Policy and Research Directorate,The World Bank (EFO),400147911,"100,000.00"
DFID,DFID,15/03/2011,Aid to international organisations,West and Southern Africa,The World Bank (EFO),400148570,"180,000.00"
DFID,DFID,04/03/2011,Aid to international organisations,Asia Division,THE WORLD BANK (IBRD ACCOUNT),400145419,"123,260.00"
DFID,DFID,14/03/2011,Aid to international organisations,International Relations Division,UN WOMEN,400148390,"500,000.00"
DFID,DFID,22/03/2011,Aid to international organisations,International Relations Division,UN WOMEN,400150338,"606,664.00"
DFID,DFID,14/03/2011,Aid to international organisations,West and Southern Africa,UNAIDS,400148041,"465,197.00"
DFID,DFID,25/03/2011,Aid to international organisations,Policy and Research Directorate,UNDESA,400151099,"525,480.67"
DFID,DFID,14/03/2011,Aid to international organisations,Asia Division,UNDP (USD) ACCOUNT,400148118,"1,300,000.00"
DFID,DFID,21/03/2011,Aid to international organisations,West and Southern Africa,UNDP (USD) ACCOUNT,400149829,"750,000.00"
DFID,DFID,30/03/2011,Aid to international organisations,East and Central Africa,UNDP (USD) ACCOUNT,400151395,"1,800,000.00"
DFID,DFID,03/03/2011,Aid to international organisations,East and Central Africa,UNDP CONTRIBUTIONS ACCOUNT,400146416,"250,000.00"
DFID,DFID,10/03/2011,Aid to international organisations,West and Southern Africa,UNDP CONTRIBUTIONS ACCOUNT,400147872,"2,434,843.00"
DFID,DFID,22/03/2011,Aid to international organisations,East and Central Africa,UNDP CONTRIBUTIONS ACCOUNT,400150354,"150,000.00"
DFID,DFID,26/03/2011,Aid to international organisations,Asia Division,UNDP CONTRIBUTIONS ACCOUNT,400151550,"1,500,000.00"
DFID,DFID,02/03/2011,Aid to international organisations,Asia Division,UNDP CONTRIBUTIONS GBP,400146059,"4,000,000.00"
DFID,DFID,03/03/2011,Aid to international organisations,Asia Division,UNDP CONTRIBUTIONS GBP,400146396,"150,000.00"
DFID,DFID,08/03/2011,Aid to international organisations,Western Asia and Stabilisation Division,UNDP CONTRIBUTIONS GBP,400147121,"1,776,715.00"
DFID,DFID,09/03/2011,Aid to international organisations,"Security & Humanitarian, Middle East, Caribbean & Overseas Territories Division",UNDP CONTRIBUTIONS GBP,400147575,"300,000.00"
DFID,DFID,11/03/2011,Aid to international organisations,Asia Division,UNDP CONTRIBUTIONS GBP,400148033,"180,000.00"
DFID,DFID,18/03/2011,Aid to international organisations,International Relations Division,UNDP CONTRIBUTIONS GBP,400149797,"3,500,000.00"
DFID,DFID,21/03/2011,Aid to international organisations,West and Southern Africa,UNDP CONTRIBUTIONS GBP,400149933,"553,056.25"
DFID,DFID,25/03/2011,Aid to international organisations,East and Central Africa,UNDP MULTI-DONOR TRUST FUND OFFICE (GBP) ACCOUNT,400150998,"1,000,000.00"
DFID,DFID,15/03/2011,Aid to international organisations,West and Southern Africa,UNFPA,400148751,"331,528.00"
DFID,DFID,18/03/2011,Aid to international organisations,East and Central Africa,UNFPA,400149725,"1,500,000.00"
DFID,DFID,21/03/2011,Aid to international organisations,East and Central Africa,UNFPA,400150063,"6,500,000.00"
DFID,DFID,24/03/2011,Aid to international organisations,East and Central Africa,United Nations Development Programme,400151008,"500,000.00"
DFID,DFID,10/03/2011,Aid to international organisations,International Relations Division,United Nations General Trust Fund (USD),400147237,"124,080.00"
DFID,DFID,31/03/2011,Aid to international organisations,"Security & Humanitarian, Middle East, Caribbean & Overseas Territories Division",United Nations General Trust Fund Account,400152745,"20,000,000.00"
DFID,DFID,04/03/2011,Aid to international organisations,East and Central Africa,UNOPS,400146662,"1,000,000.00"
DFID,DFID,14/03/2011,Aid to international organisations,Policy and Research Directorate,UNU-Wider,400148143,"125,000.00"
DFID,DFID,22/03/2011,Aid to international organisations,Policy and Research Directorate,USDA-ARS,400150081,"270,599.00"
DFID,DFID,22/03/2011,Aid to international organisations,Policy and Research Directorate,USDA-ARS,400150081,"270,599.00"
DFID,DFID,16/03/2011,Aid to international organisations,"Security & Humanitarian, Middle East, Caribbean & Overseas Territories Division",WFP CONTRIBUTIONS UNIT,400148609,"800,000.00"
DFID,DFID,08/03/2011,Aid to international organisations,Policy and Research Directorate,WHO (GENEVA),400146999,"1,000,000.00"
DFID,DFID,15/03/2011,Aid to international organisations,Policy and Research Directorate,WHO (GENEVA),400147886,"228,000.00"
DFID,DFID,25/03/2011,Aid to international organisations,Policy and Research Directorate,WHO (GENEVA),400150990,"300,000.00"
DFID,DFID,30/03/2011,Aid to international organisations,International Finance Division,WHO (GENEVA),400152182,"53,000,000.00"
DFID,DFID,07/03/2011,Aid to international organisations,"Security & Humanitarian, Middle East, Caribbean & Overseas Territories Division",World Food  Programme,400146887,"55,000.00"
DFID,DFID,21/03/2011,Aid to other bilateral donors,West and Southern Africa,(GIZ) GmbH,400149827,"2,000,000.00"
DFID,DFID,02/03/2011,Aid to other bilateral donors,East and Central Africa,Danida,400146017,"300,000.00"
DFID,DFID,02/03/2011,Aid to other bilateral donors,East and Central Africa,Deepening Democracy Programme,400146032,"1,150,000.00"
DFID,DFID,09/03/2011,Aid to other bilateral donors,"Security & Humanitarian, Middle East, Caribbean & Overseas Territories Division",FOREIGN AND COMMONWEALTH OFFICE,400147520,213.45
DFID,DFID,09/03/2011,Aid to other bilateral donors,"Security & Humanitarian, Middle East, Caribbean & Overseas Territories Division",FOREIGN AND COMMONWEALTH OFFICE,400147520,702.94
DFID,DFID,09/03/2011,Aid to other bilateral donors,"Security & Humanitarian, Middle East, Caribbean & Overseas Territories Division",FOREIGN AND COMMONWEALTH OFFICE,400147520,148.81
DFID,DFID,09/03/2011,Aid to other bilateral donors,"Security & Humanitarian, Middle East, Caribbean & Overseas Territories Division",FOREIGN AND COMMONWEALTH OFFICE,400147520,440.37
DFID,DFID,09/03/2011,Aid to other bilateral donors,"Security & Humanitarian, Middle East, Caribbean & Overseas Territories Division",FOREIGN AND COMMONWEALTH OFFICE,400147520,208.38
DFID,DFID,09/03/2011,Aid to other bilateral donors,"Security & Humanitarian, Middle East, Caribbean & Overseas Territories Division",FOREIGN AND COMMONWEALTH OFFICE,400147520,332.96
DFID,DFID,09/03/2011,Aid to other bilateral donors,"Security & Humanitarian, Middle East, Caribbean & Overseas Territories Division",FOREIGN AND COMMONWEALTH OFFICE,400147520,"13,524.18"
DFID,DFID,09/03/2011,Aid to other bilateral donors,"Security & Humanitarian, Middle East, Caribbean & Overseas Territories Division",FOREIGN AND COMMONWEALTH OFFICE,400147520,285.99
DFID,DFID,11/03/2011,Aid to other bilateral donors,West and Southern Africa,FRANCE COOPERATION INTERNATIONALE,400147813,"998,630.00"
DFID,DFID,15/03/2011,Aid to other bilateral donors,Asia Division,GTZ GmBH Eschborn,400148338,"300,000.00"
DFID,DFID,01/03/2011,Aid to other bilateral donors,East and Central Africa,GTZ Health Sector Program,400145490,"250,000.00"
DFID,DFID,11/03/2011,Aid to other bilateral donors,Policy and Research Directorate,INTERNATIONAL DEVELOPMENT RESEARCH CENTRE,400147873,"2,436,702.00"
DFID,DFID,22/03/2011,Aid to other bilateral donors,East and Central Africa,Irish Aid,400150062,"1,500,000.00"
DFID,DFID,22/03/2011,Aid to other bilateral donors,East and Central Africa,Irish Aid,400150065,"1,500,000.00"
DFID,DFID,18/03/2011,Aid to other bilateral donors,"Security & Humanitarian, Middle East, Caribbean & Overseas Territories Division",KINGDOM OF THE NETHERLANDS,400149316,"400,000.00"
DFID,DFID,30/03/2011,Aid to other bilateral donors,Policy and Research Directorate,MET OFFICE,400152415,"261,375.00"
DFID,DFID,01/03/2011,Aid to other bilateral donors,West and Southern Africa,The World Bank (EFO),400145861,"179,979.50"
DFID,DFID,26/03/2011,Aid to other bilateral donors,Finance and Corporate Performance Division,The World Bank (EFO),400151543,"50,000.00"
DFID,DFID,29/03/2011,Aid to other bilateral donors,Asia Division,The World Bank (EFO),400151986,"125,000.00"
DFID,DFID,15/03/2011,Aid to other bilateral donors,Asia Division,UNDP CONTRIBUTIONS ACCOUNT,400148773,"40,000.00"
DFID,DFID,01/03/2011,Aid to other bilateral donors,East and Central Africa,UNDP CONTRIBUTIONS GBP,400145277,"500,000.00"
DFID,DFID,22/03/2011,Aid to other bilateral donors,East and Central Africa,UNDP CONTRIBUTIONS GBP,400150379,"70,800.00"
DFID,DFID,22/03/2011,Aid to other bilateral donors,East and Central Africa,UNDP CONTRIBUTIONS GBP,400150400,"1,400,000.00"
DFID,DFID,25/03/2011,Aid to other bilateral donors,East and Central Africa,UNDP CONTRIBUTIONS GBP,400151409,"1,500,000.00"
DFID,DFID,25/03/2011,Aid to other bilateral donors,Western Asia and Stabilisation Division,UNDP MULTI-DONOR TRUST FUND OFFICE (USD) ACCOUNT,400151001,"1,000,000.00"
DFID,DFID,18/03/2011,Aid to other bilateral donors,West and Southern Africa,UNICEF,400149730,"1,500,000.00"
DFID,DFID,18/03/2011,Aid to other bilateral donors,West and Southern Africa,UNIDO,400149437,"1,700,000.00"
DFID,DFID,24/03/2011,Aid to other bilateral donors,East and Central Africa,UNOPS,400150724,"350,000.00"
DFID,DFID,14/03/2011,Aid to other bilateral donors,West and Southern Africa,USAID/NIGERIA,400147488,"5,210,957.00"
DFID,DFID,02/03/2011,Aid to other bilateral donors,East and Central Africa,WHO (GENEVA),400145985,"484,000.00"
DFID,DFID,18/03/2011,Aid to other bilateral donors,East and Central Africa,WHO (GENEVA),400149432,"633,613.00"
DFID,DFID,22/03/2011,Aid to partner government,East and Central Africa,IBRD HSBC T,400150315,"5,000,000.00"
DFID,DFID,02/03/2011,Aid to partner government,East and Central Africa,THE CROWN AGENTS (Tanzania),400146232,"56,828.00"
DFID,DFID,03/03/2011,Aid to partner government,West and Southern Africa,THE CROWN AGENTS (Sierra Leone),400146452,"4,000,000.00"
DFID,DFID,03/03/2011,Aid to partner government,West and Southern Africa,THE CROWN AGENTS (Malawi),400146472,"500,000.00"
DFID,DFID,04/03/2011,Aid to partner government,Asia Division,THE CROWN AGENTS (India),400146473,"1,204,604.85"
DFID,DFID,04/03/2011,Aid to partner government,Asia Division,THE CROWN AGENTS (India),400146475,"652,540.93"
DFID,DFID,07/03/2011,Aid to partner government,West and Southern Africa,THE CROWN AGENTS (Ghana),400146478,"1,800,000.00"
DFID,DFID,07/03/2011,Aid to partner government,Western Asia and Stabilisation Division,THE CROWN AGENTS (Pakistan),400146556,"7,000,000.00"
DFID,DFID,07/03/2011,Aid to partner government,Western Asia and Stabilisation Division,THE CROWN AGENTS (Pakistan),400146556,"3,000,000.00"
DFID,DFID,04/03/2011,Aid to partner government,Asia Division,THE CROWN AGENTS (China),400146805,"100,000.00"
DFID,DFID,08/03/2011,Aid to partner government,West and Southern Africa,THE CROWN AGENTS (Zambia),400147158,"26,300,000.00"
DFID,DFID,09/03/2011,Aid to partner government,East and Central Africa,THE CROWN AGENTS (Ethiopia),400147393,"10,000,000.00"
DFID,DFID,09/03/2011,Aid to partner government,West and Southern Africa,THE CROWN AGENTS (Mozambique),400147422,"2,700,000.00"
DFID,DFID,09/03/2011,Aid to partner government,West and Southern Africa,THE CROWN AGENTS (Mozambique),400147471,"2,000,000.00"
DFID,DFID,09/03/2011,Aid to partner government,Asia Division,THE CROWN AGENTS (India),400147473,"1,000,000.00"
DFID,DFID,09/03/2011,Aid to partner government,Asia Division,THE CROWN AGENTS (India),400147610,"1,239,788.43"
DFID,DFID,10/03/2011,Aid to partner government,West and Southern Africa,THE CROWN AGENTS (Mozambique),400147717,"675,000.00"
DFID,DFID,10/03/2011,Aid to partner government,West and Southern Africa,THE CROWN AGENTS (Mozambique),400147717,"3,825,000.00"
DFID,DFID,11/03/2011,Aid to partner government,Asia Division,THE CROWN AGENTS (India),400147891,"1,712,991.52"
DFID,DFID,14/03/2011,Aid to partner government,"Security & Humanitarian, Middle East, Caribbean & Overseas Territories Division",THE CROWN AGENTS (Overseas Territories),400147919,"41,355.49"
DFID,DFID,14/03/2011,Aid to partner government,"Security & Humanitarian, Middle East, Caribbean & Overseas Territories Division",THE CROWN AGENTS (Overseas Territories),400147919,-1
DFID,DFID,11/03/2011,Aid to partner government,"Security & Humanitarian, Middle East, Caribbean & Overseas Territories Division",THE CROWN AGENTS (Overseas Territories),400148038,"28,165.31"
DFID,DFID,11/03/2011,Aid to partner government,"Security & Humanitarian, Middle East, Caribbean & Overseas Territories Division",THE CROWN AGENTS (Overseas Territories),400148151,"40,039.11"
DFID,DFID,11/03/2011,Aid to partner government,"Security & Humanitarian, Middle East, Caribbean & Overseas Territories Division",THE CROWN AGENTS (Overseas Territories),400148151,"-15,000.00"
DFID,DFID,11/03/2011,Aid to partner government,West and Southern Africa,THE CROWN AGENTS (Malawi),400148166,"5,991,948.00"
DFID,DFID,11/03/2011,Aid to partner government,West and Southern Africa,THE CROWN AGENTS (Malawi),400148167,"1,566,667.00"
DFID,DFID,15/03/2011,Aid to partner government,East and Central Africa,THE CROWN AGENTS (Uganda),400148558,"2,600,000.00"
DFID,DFID,15/03/2011,Aid to partner government,West and Southern Africa,THE CROWN AGENTS (Mozambique),400148804,"2,500,000.00"
DFID,DFID,16/03/2011,Aid to partner government,Asia Division,THE CROWN AGENTS (India),400148807,"8,000,001.00"
DFID,DFID,16/03/2011,Aid to partner government,Asia Division,THE CROWN AGENTS (India),400148807,-1
DFID,DFID,16/03/2011,Aid to partner government,Asia Division,THE CROWN AGENTS (India),400148813,"2,000,001.00"
DFID,DFID,16/03/2011,Aid to partner government,Asia Division,THE CROWN AGENTS (India),400148813,-1
DFID,DFID,15/03/2011,Aid to partner government,Asia Division,THE CROWN AGENTS (India),400148822,"433,346.99"
DFID,DFID,18/03/2011,Aid to partner government,West and Southern Africa,THE CROWN AGENTS (Mozambique),400148965,"145,500.00"
DFID,DFID,16/03/2011,Aid to partner government,Asia Division,THE CROWN AGENTS (India),400149000,"4,690,949.00"
DFID,DFID,16/03/2011,Aid to partner government,Asia Division,THE CROWN AGENTS (Vietnam),400149002,"3,000,000.00"
DFID,DFID,16/03/2011,Aid to partner government,Asia Division,THE CROWN AGENTS (India),400149003,"2,130,646.41"
DFID,DFID,17/03/2011,Aid to partner government,Asia Division,THE CROWN AGENTS (India),400149013,"828,429.32"
DFID,DFID,21/03/2011,Aid to partner government,East and Central Africa,THE CROWN AGENTS (Kenya),400149424,"152,951.36"
DFID,DFID,22/03/2011,Aid to partner government,West and Southern Africa,THE CROWN AGENTS (Malawi),400149711,"181,172.00"
DFID,DFID,18/03/2011,Aid to partner government,Asia Division,THE CROWN AGENTS (Nepal),400149781,"2,000,000.00"
DFID,DFID,21/03/2011,Aid to partner government,"Security & Humanitarian, Middle East, Caribbean & Overseas Territories Division",THE CROWN AGENTS (Overseas Territories),400149784,"1,075,000.00"
DFID,DFID,18/03/2011,Aid to partner government,Asia Division,THE CROWN AGENTS (India),400149787,"1,660,648.93"
DFID,DFID,21/03/2011,Aid to partner government,West and Southern Africa,THE CROWN AGENTS (Mozambique),400150053,"2,500,000.00"
DFID,DFID,22/03/2011,Aid to partner government,East and Central Africa,THE CROWN AGENTS (Rwanda),400150054,"1,000,000.00"
DFID,DFID,21/03/2011,Aid to partner government,Asia Division,THE CROWN AGENTS (India),400150055,"3,112,854.97"
DFID,DFID,22/03/2011,Aid to partner government,Asia Division,THE CROWN AGENTS (China),400150120,"44,197.63"
DFID,DFID,24/03/2011,Aid to partner government,"Security & Humanitarian, Middle East, Caribbean & Overseas Territories Division",THE CROWN AGENTS (Overseas Territories),400150641,"1,040,000.00"
DFID,DFID,23/03/2011,Aid to partner government,Western Asia and Stabilisation Division,THE CROWN AGENTS (Pakistan),400150652,"5,100,000.00"
DFID,DFID,23/03/2011,Aid to partner government,Western Asia and Stabilisation Division,THE CROWN AGENTS (Pakistan),400150654,"10,000,000.00"
DFID,DFID,23/03/2011,Aid to partner government,Asia Division,THE CROWN AGENTS (Nepal),400150656,"2,000,000.00"
DFID,DFID,24/03/2011,Aid to partner government,West and Southern Africa,THE CROWN AGENTS (Southern Africa),400150751,"4,000,000.00"
DFID,DFID,25/03/2011,Aid to partner government,Western Asia and Stabilisation Division,THE CROWN AGENTS (Pakistan),400151140,"2,200,000.00"
DFID,DFID,28/03/2011,Aid to partner government,Asia Division,THE CROWN AGENTS (India),400151360,"1,100,309.22"
DFID,DFID,25/03/2011,Aid to partner government,"Security & Humanitarian, Middle East, Caribbean & Overseas Territories Division",THE CROWN AGENTS (Overseas Territories),400151434,"132,732.22"
DFID,DFID,25/03/2011,Aid to partner government,"Security & Humanitarian, Middle East, Caribbean & Overseas Territories Division",THE CROWN AGENTS (Overseas Territories),400151435,"91,539.46"
DFID,DFID,25/03/2011,Aid to partner government,"Security & Humanitarian, Middle East, Caribbean & Overseas Territories Division",THE CROWN AGENTS (Overseas Territories),400151436,"232,859.84"
DFID,DFID,25/03/2011,Aid to partner government,"Security & Humanitarian, Middle East, Caribbean & Overseas Territories Division",THE CROWN AGENTS (Overseas Territories),400151437,"228,848.66"
DFID,DFID,28/03/2011,Aid to partner government,East and Central Africa,THE CROWN AGENTS (Burundi),400151462,"500,000.00"
DFID,DFID,26/03/2011,Aid to partner government,"Security & Humanitarian, Middle East, Caribbean & Overseas Territories Division",THE CROWN AGENTS (Overseas Territories),400151465,"457,697.32"
DFID,DFID,26/03/2011,Aid to partner government,"Security & Humanitarian, Middle East, Caribbean & Overseas Territories Division",THE CROWN AGENTS (Overseas Territories),400151468,"34,327.30"
DFID,DFID,26/03/2011,Aid to partner government,"Security & Humanitarian, Middle East, Caribbean & Overseas Territories Division",THE CROWN AGENTS (Overseas Territories),400151469,"343,272.99"
DFID,DFID,26/03/2011,Aid to partner government,"Security & Humanitarian, Middle East, Caribbean & Overseas Territories Division",THE CROWN AGENTS (Overseas Territories),400151476,"96,116.44"
DFID,DFID,26/03/2011,Aid to partner government,"Security & Humanitarian, Middle East, Caribbean & Overseas Territories Division",THE CROWN AGENTS (Overseas Territories),400151477,"434,812.46"
DFID,DFID,26/03/2011,Aid to partner government,"Security & Humanitarian, Middle East, Caribbean & Overseas Territories Division",THE CROWN AGENTS (Overseas Territories),400151478,"45,769.73"
DFID,DFID,26/03/2011,Aid to partner government,"Security & Humanitarian, Middle East, Caribbean & Overseas Territories Division",THE CROWN AGENTS (Overseas Territories),400151481,"167,786.16"
DFID,DFID,26/03/2011,Aid to partner government,Asia Division,THE CROWN AGENTS (India),400151510,"770,614.96"
DFID,DFID,28/03/2011,Aid to partner government,Western Asia and Stabilisation Division,THE CROWN AGENTS (Pakistan),400151667,"3,800,000.00"
DFID,DFID,21/03/2011,Aid to partner government,"Security & Humanitarian, Middle East, Caribbean & Overseas Territories Division",UN WOMEN,400150072,"452,589.00"
DFID,DFID,01/03/2011,Aid to partner government,East and Central Africa,USAID Washington,400144593,"200,000.00"
DFID,DFID,31/03/2011,Books & Publications,Business Solutions Division Level,Natwest Government Procurement Card,100037,135
DFID,DFID,31/03/2011,Books & Publications,Communications Division,Natwest Government Procurement Card,100037,384.8
DFID,DFID,31/03/2011,Books & Publications,Evaluation Department,Natwest Government Procurement Card,100037,"1,289.60"
DFID,DFID,31/03/2011,Books & Publications,Policy and Research Directorate,Natwest Government Procurement Card,100037,17.8
DFID,DFID,22/03/2011,Building Plant,West and Southern Africa,Afri-Med Nig Ltd,400150368,"31,388.39"
DFID,DFID,11/03/2011,Communications,Business Solutions Division Level,CABLE & WIRELESS COMMUN,400148160,"125,748.00"
DFID,DFID,11/03/2011,Communications,Business Solutions Division Level,CABLE & WIRELESS COMMUN,400148180,"51,447.60"
DFID,DFID,11/03/2011,Communications,Business Solutions Division Level,FCO RECOVERIES UNIT,400148139,"845,889.53"
DFID,DFID,22/03/2011,Communications,Business Solutions Division Level,FCO RECOVERIES UNIT,400150335,"83,525.05"
DFID,DFID,09/03/2011,Communications,"Security & Humanitarian, Middle East, Caribbean & Overseas Territories Division",FOREIGN AND COMMONWEALTH OFFICE,400147520,30.79
DFID,DFID,09/03/2011,Communications,"Security & Humanitarian, Middle East, Caribbean & Overseas Territories Division",FOREIGN AND COMMONWEALTH OFFICE,400147520,13.75
DFID,DFID,09/03/2011,Communications,"Security & Humanitarian, Middle East, Caribbean & Overseas Territories Division",FOREIGN AND COMMONWEALTH OFFICE,400147520,56.07
DFID,DFID,09/03/2011,Communications,"Security & Humanitarian, Middle East, Caribbean & Overseas Territories Division",FOREIGN AND COMMONWEALTH OFFICE,400147520,86.56
DFID,DFID,31/03/2011,Communications,Policy and Research Directorate,Natwest Government Procurement Card,100037,"1,743.54"
DFID,DFID,31/03/2011,Communications,West and Southern Africa,Natwest Government Procurement Card,100037,519.83
DFID,DFID,25/03/2011,Communications,Western Asia and Stabilisation Division,THE CROWN AGENTS,400137991,"3,188.28"
DFID,DFID,02/03/2011,Communications,Asia Division,THE CROWN AGENTS,400146235,"190,218.00"
DFID,DFID,21/03/2011,Communications,Asia Division,THE CROWN AGENTS,400149431,"160,256.00"
DFID,DFID,21/03/2011,Communications,Asia Division,THE CROWN AGENTS,400149672,"32,680.00"
DFID,DFID,31/03/2011,Consumables,Business Solutions Division Level,Natwest Government Procurement Card,100037,"7,612.29"
DFID,DFID,31/03/2011,Consumables,East and Central Africa,Natwest Government Procurement Card,100037,596
DFID,DFID,31/03/2011,Consumables,West and Southern Africa,Natwest Government Procurement Card,100037,"7,104.65"
DFID,DFID,31/03/2011,Consumables,Western Asia and Stabilisation Division,Natwest Government Procurement Card,100037,"2,477.36"
DFID,DFID,31/03/2011,Contract & Agency Staff,Communications Division,Natwest Government Procurement Card,100037,"2,513.06"
DFID,DFID,31/03/2011,Contract & Agency Staff,International Finance Division,Natwest Government Procurement Card,100037,"1,786.75"
DFID,DFID,31/03/2011,Contract & Agency Staff,Policy and Research Directorate,Natwest Government Procurement Card,100037,"9,539.30"
DFID,DFID,31/03/2011,Contract & Agency Staff,"Security & Humanitarian, Middle East, Caribbean & Overseas Territories Division",Natwest Government Procurement Card,100037,"11,596.03"
DFID,DFID,31/03/2011,Contract & Agency Staff,Western Asia and Stabilisation Division,Natwest Government Procurement Card,100037,"6,320.00"
DFID,DFID,10/03/2011,Debt Relief,International Finance Division,Export Credits Guarantee Dept,400147751,"13,076,175.70"
DFID,DFID,28/03/2011,Direct Programme training / facilitation,Western Asia and Stabilisation Division,COFFEY INTERNATIONAL DEVELOPMENT LTD,400151509,"32,525.00"
DFID,DFID,22/03/2011,Direct Programme training / facilitation,Policy and Research Directorate,Interanalysis Limited,400150328,"100,223.42"
DFID,DFID,22/03/2011,Direct Programme training / facilitation,Policy and Research Directorate,Interanalysis Limited,400150328,"32,586.98"
DFID,DFID,16/03/2011,Donor Replenishment of funding,Policy and Research Directorate,Global Environmental Funds,400148938,"5,082,000.00"
DFID,DFID,18/03/2011,Donor Replenishment of funding,International Finance Division,Global Fund AIDS TB Malaria,400149699,"26,000,000.00"
DFID,DFID,30/03/2011,Donor Replenishment of funding,International Finance Division,International Development Association (IDA) ,400152324,"97,630,000.00"
DFID,DFID,22/03/2011,Educational Supplies/Aids,Asia Division,THE CROWN AGENTS,400149709,"35,982.00"
DFID,DFID,18/03/2011,Emergency / Humanitarian Assistance,"Security & Humanitarian, Middle East, Caribbean & Overseas Territories Division",AIR PARTNER PLC,400149724,"331,850.00"
DFID,DFID,18/03/2011,Emergency / Humanitarian Assistance,"Security & Humanitarian, Middle East, Caribbean & Overseas Territories Division",AIR PARTNER PLC,400149726,"69,950.00"
DFID,DFID,18/03/2011,Emergency / Humanitarian Assistance,"Security & Humanitarian, Middle East, Caribbean & Overseas Territories Division",AIR PARTNER PLC,400149728,"75,245.00"
DFID,DFID,18/03/2011,Emergency / Humanitarian Assistance,"Security & Humanitarian, Middle East, Caribbean & Overseas Territories Division",AIR PARTNER PLC,400149729,"75,245.00"
DFID,DFID,18/03/2011,Emergency / Humanitarian Assistance,"Security & Humanitarian, Middle East, Caribbean & Overseas Territories Division",AIR PARTNER PLC,400149744,"136,015.00"
DFID,DFID,18/03/2011,Emergency / Humanitarian Assistance,"Security & Humanitarian, Middle East, Caribbean & Overseas Territories Division",AIR PARTNER PLC,400149747,"280,625.00"
DFID,DFID,18/03/2011,Emergency / Humanitarian Assistance,"Security & Humanitarian, Middle East, Caribbean & Overseas Territories Division",AIR PARTNER PLC,400149751,"367,347.00"
DFID,DFID,22/03/2011,Emergency / Humanitarian Assistance,"Security & Humanitarian, Middle East, Caribbean & Overseas Territories Division",AIR PARTNER PLC,400150226,"50,340.00"
DFID,DFID,22/03/2011,Emergency / Humanitarian Assistance,"Security & Humanitarian, Middle East, Caribbean & Overseas Territories Division",AIR PARTNER PLC,400150422,"167,800.00"
DFID,DFID,22/03/2011,Emergency / Humanitarian Assistance,"Security & Humanitarian, Middle East, Caribbean & Overseas Territories Division",AIR PARTNER PLC,400150423,"167,800.00"
DFID,DFID,22/03/2011,Emergency / Humanitarian Assistance,"Security & Humanitarian, Middle East, Caribbean & Overseas Territories Division",AIR PARTNER PLC,400150426,"167,800.00"
DFID,DFID,22/03/2011,Emergency / Humanitarian Assistance,"Security & Humanitarian, Middle East, Caribbean & Overseas Territories Division",AIR PARTNER PLC,400150429,"48,980.00"
DFID,DFID,22/03/2011,Emergency / Humanitarian Assistance,"Security & Humanitarian, Middle East, Caribbean & Overseas Territories Division",AIR PARTNER PLC,400150432,"50,340.00"
DFID,DFID,22/03/2011,Emergency / Humanitarian Assistance,"Security & Humanitarian, Middle East, Caribbean & Overseas Territories Division",AIR PARTNER PLC,400150434,"50,340.00"
DFID,DFID,22/03/2011,Emergency / Humanitarian Assistance,"Security & Humanitarian, Middle East, Caribbean & Overseas Territories Division",AIR PARTNER PLC,400150438,"48,980.00"
DFID,DFID,22/03/2011,Emergency / Humanitarian Assistance,"Security & Humanitarian, Middle East, Caribbean & Overseas Territories Division",AIR PARTNER PLC,400150439,"50,340.00"
DFID,DFID,22/03/2011,Emergency / Humanitarian Assistance,"Security & Humanitarian, Middle East, Caribbean & Overseas Territories Division",AIR PARTNER PLC,400150441,"50,340.00"
DFID,DFID,22/03/2011,Emergency / Humanitarian Assistance,"Security & Humanitarian, Middle East, Caribbean & Overseas Territories Division",AIR PARTNER PLC,400150443,"48,980.00"
DFID,DFID,22/03/2011,Emergency / Humanitarian Assistance,"Security & Humanitarian, Middle East, Caribbean & Overseas Territories Division",AIR PARTNER PLC,400150446,"50,340.00"
DFID,DFID,22/03/2011,Emergency / Humanitarian Assistance,"Security & Humanitarian, Middle East, Caribbean & Overseas Territories Division",AIR PARTNER PLC,400150464,"50,340.00"
DFID,DFID,22/03/2011,Emergency / Humanitarian Assistance,"Security & Humanitarian, Middle East, Caribbean & Overseas Territories Division",AIR PARTNER PLC,400150465,"48,980.00"
DFID,DFID,22/03/2011,Emergency / Humanitarian Assistance,"Security & Humanitarian, Middle East, Caribbean & Overseas Territories Division",AIR PARTNER PLC,400150466,"50,340.00"
DFID,DFID,22/03/2011,Emergency / Humanitarian Assistance,"Security & Humanitarian, Middle East, Caribbean & Overseas Territories Division",AIR PARTNER PLC,400150467,"48,980.00"
DFID,DFID,22/03/2011,Emergency / Humanitarian Assistance,"Security & Humanitarian, Middle East, Caribbean & Overseas Territories Division",AIR PARTNER PLC,400150468,"48,980.00"
DFID,DFID,22/03/2011,Emergency / Humanitarian Assistance,"Security & Humanitarian, Middle East, Caribbean & Overseas Territories Division",AIR PARTNER PLC,400150469,"50,340.00"
DFID,DFID,31/03/2011,Emergency / Humanitarian Assistance,"Security & Humanitarian, Middle East, Caribbean & Overseas Territories Division",AIR PARTNER PLC,400152808,"412,998.00"
DFID,DFID,31/03/2011,Emergency / Humanitarian Assistance,"Security & Humanitarian, Middle East, Caribbean & Overseas Territories Division",AIR PARTNER PLC,400152811,"492,281.00"
DFID,DFID,07/03/2011,Emergency / Humanitarian Assistance,"Security & Humanitarian, Middle East, Caribbean & Overseas Territories Division",CHARITIES AID FOUNDATION,400146952,"236,000.00"
DFID,DFID,30/03/2011,Emergency / Humanitarian Assistance,"Security & Humanitarian, Middle East, Caribbean & Overseas Territories Division",CHIEF FIRE OFFICERS ASSOCIATION,400152511,"103,778.46"
DFID,DFID,24/03/2011,Emergency / Humanitarian Assistance,"Security & Humanitarian, Middle East, Caribbean & Overseas Territories Division",Hogg Robinson Group,6000043,"1,439.32"
DFID,DFID,22/03/2011,Emergency / Humanitarian Assistance,"Security & Humanitarian, Middle East, Caribbean & Overseas Territories Division",IOM,400150244,"500,000.00"
DFID,DFID,29/03/2011,Emergency / Humanitarian Assistance,"Security & Humanitarian, Middle East, Caribbean & Overseas Territories Division",IOM,400152169,"4,000,000.00"
DFID,DFID,08/03/2011,Emergency / Humanitarian Assistance,West and Southern Africa,National Disaster Management Institute (INGC),400146818,"500,000.00"
DFID,DFID,11/03/2011,Emergency / Humanitarian Assistance,Western Asia and Stabilisation Division,THE CROWN AGENTS,400147179,"452,300.00"
DFID,DFID,15/03/2011,Emergency / Humanitarian Assistance,Western Asia and Stabilisation Division,THE CROWN AGENTS,400148441,"288,000.00"
DFID,DFID,17/03/2011,Emergency / Humanitarian Assistance,"Security & Humanitarian, Middle East, Caribbean & Overseas Territories Division",THE INTERNATIONAL COMMITTEE OF THE RED CROSS (ICRC),400149271,"2,000,000.00"
DFID,DFID,24/03/2011,Emergency / Humanitarian Assistance,East and Central Africa,UN OCHA,400151112,"5,000,000.00"
DFID,DFID,24/03/2011,Emergency / Humanitarian Assistance,East and Central Africa,UN OCHA,400151118,"400,000.00"
DFID,DFID,23/03/2011,Emergency / Humanitarian Assistance,West and Southern Africa,UNDP (UK),400150612,"500,000.00"
DFID,DFID,28/03/2011,Emergency / Humanitarian Assistance,East and Central Africa,UNDP (USD) ACCOUNT,400149061,"10,000,000.00"
DFID,DFID,07/03/2011,Emergency / Humanitarian Assistance,West and Southern Africa,World Food  Programme,400146816,"1,000,000.00"
DFID,DFID,09/03/2011,Energy Costs,"Security & Humanitarian, Middle East, Caribbean & Overseas Territories Division",FOREIGN AND COMMONWEALTH OFFICE,400147520,100.34
DFID,DFID,09/03/2011,Energy Costs,"Security & Humanitarian, Middle East, Caribbean & Overseas Territories Division",FOREIGN AND COMMONWEALTH OFFICE,400147520,40.79
DFID,DFID,09/03/2011,Energy Costs,"Security & Humanitarian, Middle East, Caribbean & Overseas Territories Division",FOREIGN AND COMMONWEALTH OFFICE,400147520,541.91
DFID,DFID,09/03/2011,Energy Costs,"Security & Humanitarian, Middle East, Caribbean & Overseas Territories Division",FOREIGN AND COMMONWEALTH OFFICE,400147520,129.57
DFID,DFID,09/03/2011,Energy Costs,"Security & Humanitarian, Middle East, Caribbean & Overseas Territories Division",FOREIGN AND COMMONWEALTH OFFICE,400147520,372.77
DFID,DFID,09/03/2011,Energy Costs,"Security & Humanitarian, Middle East, Caribbean & Overseas Territories Division",FOREIGN AND COMMONWEALTH OFFICE,400147520,253.19
DFID,DFID,09/03/2011,Energy Costs,"Security & Humanitarian, Middle East, Caribbean & Overseas Territories Division",FOREIGN AND COMMONWEALTH OFFICE,400147520,382.13
DFID,DFID,09/03/2011,Energy Costs,"Security & Humanitarian, Middle East, Caribbean & Overseas Territories Division",FOREIGN AND COMMONWEALTH OFFICE,400147520,301.2
DFID,DFID,09/03/2011,Energy Costs,"Security & Humanitarian, Middle East, Caribbean & Overseas Territories Division",FOREIGN AND COMMONWEALTH OFFICE,400147520,"1,333.02"
DFID,DFID,31/03/2011,Entertainment & Hospitality,West and Southern Africa,Natwest Government Procurement Card,100037,296.95
DFID,DFID,25/03/2011,FCO Post Account,International Relations Division,FOREIGN AND COMMONWEALTH OFFICE,400145685,388.72
DFID,DFID,25/03/2011,FCO Post Account,International Relations Division,FOREIGN AND COMMONWEALTH OFFICE,400145685,215.79
DFID,DFID,25/03/2011,FCO Post Account,Asia Division,FOREIGN AND COMMONWEALTH OFFICE,400145685,"137,077.67"
DFID,DFID,25/03/2011,FCO Post Account,Asia Division,FOREIGN AND COMMONWEALTH OFFICE,400145685,979.24
DFID,DFID,25/03/2011,FCO Post Account,Business Solutions Division Level,FOREIGN AND COMMONWEALTH OFFICE,400145685,228.19
DFID,DFID,25/03/2011,FCO Post Account,West and Southern Africa,FOREIGN AND COMMONWEALTH OFFICE,400145685,417.35
DFID,DFID,25/03/2011,FCO Post Account,International Relations Division,FOREIGN AND COMMONWEALTH OFFICE,400145685,735.01
DFID,DFID,01/03/2011,FCO Post Account,Business Solutions Division Level,FOREIGN AND COMMONWEALTH OFFICE,400145777,"1,313.82"
DFID,DFID,01/03/2011,FCO Post Account,International Relations Division,FOREIGN AND COMMONWEALTH OFFICE,400145777,"5,135.04"
DFID,DFID,01/03/2011,FCO Post Account,Asia Division,FOREIGN AND COMMONWEALTH OFFICE,400145777,"10,105.08"
DFID,DFID,01/03/2011,FCO Post Account,International Relations Division,FOREIGN AND COMMONWEALTH OFFICE,400145777,"2,850.75"
DFID,DFID,01/03/2011,FCO Post Account,International Relations Division,FOREIGN AND COMMONWEALTH OFFICE,400145777,936.04
DFID,DFID,01/03/2011,FCO Post Account,International Relations Division,FOREIGN AND COMMONWEALTH OFFICE,400145777,3.46
DFID,DFID,01/03/2011,FCO Post Account,"Security & Humanitarian, Middle East, Caribbean & Overseas Territories Division",FOREIGN AND COMMONWEALTH OFFICE,400145785,124.21
DFID,DFID,01/03/2011,FCO Post Account,Human Resources Division,FOREIGN AND COMMONWEALTH OFFICE,400145785,65
DFID,DFID,01/03/2011,FCO Post Account,"Security & Humanitarian, Middle East, Caribbean & Overseas Territories Division",FOREIGN AND COMMONWEALTH OFFICE,400145785,"17,074.03"
DFID,DFID,01/03/2011,FCO Post Account,Communications Division,FOREIGN AND COMMONWEALTH OFFICE,400145785,90.14
DFID,DFID,01/03/2011,FCO Post Account,Business Solutions Division Level,FOREIGN AND COMMONWEALTH OFFICE,400145785,"4,168.03"
DFID,DFID,01/03/2011,FCO Post Account,International Relations Division,FOREIGN AND COMMONWEALTH OFFICE,400145785,"3,909.58"
DFID,DFID,08/03/2011,FCO Post Account,Business Solutions Division Level,FOREIGN AND COMMONWEALTH OFFICE,400145800,166.42
DFID,DFID,08/03/2011,FCO Post Account,International Relations Division,FOREIGN AND COMMONWEALTH OFFICE,400145800,"1,578.52"
DFID,DFID,08/03/2011,FCO Post Account,West and Southern Africa,FOREIGN AND COMMONWEALTH OFFICE,400145800,133.51
DFID,DFID,08/03/2011,FCO Post Account,Asia Division,FOREIGN AND COMMONWEALTH OFFICE,400145800,"1,696.98"
DFID,DFID,08/03/2011,FCO Post Account,Asia Division,FOREIGN AND COMMONWEALTH OFFICE,400145800,"2,475.17"
DFID,DFID,08/03/2011,FCO Post Account,International Relations Division,FOREIGN AND COMMONWEALTH OFFICE,400145800,904.69
DFID,DFID,08/03/2011,FCO Post Account,Policy and Research Directorate,FOREIGN AND COMMONWEALTH OFFICE,400145800,78.64
DFID,DFID,08/03/2011,FCO Post Account,Policy and Research Directorate,FOREIGN AND COMMONWEALTH OFFICE,400145800,235.93
DFID,DFID,08/03/2011,FCO Post Account,International Relations Division,FOREIGN AND COMMONWEALTH OFFICE,400145800,42.68
DFID,DFID,01/03/2011,FCO Post Account,International Relations Division,FOREIGN AND COMMONWEALTH OFFICE,400145806,141.81
DFID,DFID,01/03/2011,FCO Post Account,Asia Division,FOREIGN AND COMMONWEALTH OFFICE,400145806,978.29
DFID,DFID,01/03/2011,FCO Post Account,International Relations Division,FOREIGN AND COMMONWEALTH OFFICE,400145806,47.82
DFID,DFID,01/03/2011,FCO Post Account,International Relations Division,FOREIGN AND COMMONWEALTH OFFICE,400145806,17.35
DFID,DFID,01/03/2011,FCO Post Account,Business Solutions Division Level,FOREIGN AND COMMONWEALTH OFFICE,400145806,"1,419.29"
DFID,DFID,01/03/2011,FCO Post Account,Asia Division,FOREIGN AND COMMONWEALTH OFFICE,400145806,"1,590.12"
DFID,DFID,01/03/2011,FCO Post Account,West and Southern Africa,FOREIGN AND COMMONWEALTH OFFICE,400145806,461.13
DFID,DFID,01/03/2011,FCO Post Account,"Security & Humanitarian, Middle East, Caribbean & Overseas Territories Division",FOREIGN AND COMMONWEALTH OFFICE,400145829,"40,315.71"
DFID,DFID,01/03/2011,FCO Post Account,International Relations Division,FOREIGN AND COMMONWEALTH OFFICE,400145829,45.34
DFID,DFID,01/03/2011,FCO Post Account,International Relations Division,FOREIGN AND COMMONWEALTH OFFICE,400145829,737.32
DFID,DFID,01/03/2011,FCO Post Account,East and Central Africa,FOREIGN AND COMMONWEALTH OFFICE,400145856,540.29
DFID,DFID,01/03/2011,FCO Post Account,Asia Division,FOREIGN AND COMMONWEALTH OFFICE,400145856,129.33
DFID,DFID,01/03/2011,FCO Post Account,West and Southern Africa,FOREIGN AND COMMONWEALTH OFFICE,400145856,-492.79
DFID,DFID,01/03/2011,FCO Post Account,"Security & Humanitarian, Middle East, Caribbean & Overseas Territories Division",FOREIGN AND COMMONWEALTH OFFICE,400145856,"7,648.51"
DFID,DFID,01/03/2011,FCO Post Account,Asia Division,FOREIGN AND COMMONWEALTH OFFICE,400145856,"5,898.83"
DFID,DFID,01/03/2011,FCO Post Account,Western Asia and Stabilisation Division,FOREIGN AND COMMONWEALTH OFFICE,400145856,454.81
DFID,DFID,01/03/2011,FCO Post Account,Human Resources Division,FOREIGN AND COMMONWEALTH OFFICE,400145856,168.93
DFID,DFID,01/03/2011,FCO Post Account,Western Asia and Stabilisation Division,FOREIGN AND COMMONWEALTH OFFICE,400145856,348.12
DFID,DFID,01/03/2011,FCO Post Account,Asia Division,FOREIGN AND COMMONWEALTH OFFICE,400145856,"8,441.44"
DFID,DFID,01/03/2011,FCO Post Account,Asia Division,FOREIGN AND COMMONWEALTH OFFICE,400145856,"10,342.47"
DFID,DFID,01/03/2011,FCO Post Account,West and Southern Africa,FOREIGN AND COMMONWEALTH OFFICE,400145856,"6,031.68"
DFID,DFID,01/03/2011,FCO Post Account,East and Central Africa,FOREIGN AND COMMONWEALTH OFFICE,400145856,"1,429.41"
DFID,DFID,25/03/2011,FCO Post Account,Asia Division,FOREIGN AND COMMONWEALTH OFFICE,400146209,"25,445.14"
DFID,DFID,25/03/2011,FCO Post Account,East and Central Africa,FOREIGN AND COMMONWEALTH OFFICE,400146209,"3,083.50"
DFID,DFID,25/03/2011,FCO Post Account,Asia Division,FOREIGN AND COMMONWEALTH OFFICE,400146209,"2,215.58"
DFID,DFID,25/03/2011,FCO Post Account,East and Central Africa,FOREIGN AND COMMONWEALTH OFFICE,400146209,190.73
DFID,DFID,25/03/2011,FCO Post Account,Western Asia and Stabilisation Division,FOREIGN AND COMMONWEALTH OFFICE,400146209,27.96
DFID,DFID,25/03/2011,FCO Post Account,"Security & Humanitarian, Middle East, Caribbean & Overseas Territories Division",FOREIGN AND COMMONWEALTH OFFICE,400146209,"6,072.00"
DFID,DFID,25/03/2011,FCO Post Account,Asia Division,FOREIGN AND COMMONWEALTH OFFICE,400146209,388.2
DFID,DFID,25/03/2011,FCO Post Account,East and Central Africa,FOREIGN AND COMMONWEALTH OFFICE,400146209,"12,288.81"
DFID,DFID,25/03/2011,FCO Post Account,Asia Division,FOREIGN AND COMMONWEALTH OFFICE,400146209,305.35
DFID,DFID,04/03/2011,FCO Post Account,Central Department Division,FOREIGN AND COMMONWEALTH OFFICE,400146221,"124,617.38"
DFID,DFID,04/03/2011,FCO Post Account,Central Department Division,FOREIGN AND COMMONWEALTH OFFICE,400146227,"37,880.17"
DFID,DFID,04/03/2011,FCO Post Account,Central Department Division,FOREIGN AND COMMONWEALTH OFFICE,400146233,"43,132.80"
DFID,DFID,04/03/2011,FCO Post Account,Central Department Division,FOREIGN AND COMMONWEALTH OFFICE,400146240,"117,504.10"
DFID,DFID,07/03/2011,FCO Post Account,"Security & Humanitarian, Middle East, Caribbean & Overseas Territories Division",FOREIGN AND COMMONWEALTH OFFICE,400146942,"4,858.64"
DFID,DFID,07/03/2011,FCO Post Account,"Security & Humanitarian, Middle East, Caribbean & Overseas Territories Division",FOREIGN AND COMMONWEALTH OFFICE,400146942,34.44
DFID,DFID,07/03/2011,FCO Post Account,Top Management Group,FOREIGN AND COMMONWEALTH OFFICE,400146942,"3,950.58"
DFID,DFID,07/03/2011,FCO Post Account,Business Solutions Division Level,FOREIGN AND COMMONWEALTH OFFICE,400146942,"3,172.72"
DFID,DFID,07/03/2011,FCO Post Account,International Finance Division,FOREIGN AND COMMONWEALTH OFFICE,400146942,394.46
DFID,DFID,07/03/2011,FCO Post Account,International Relations Division,FOREIGN AND COMMONWEALTH OFFICE,400146942,"6,169.76"
DFID,DFID,24/03/2011,FCO Post Account,International Relations Division,FOREIGN AND COMMONWEALTH OFFICE,400147582,696.19
DFID,DFID,24/03/2011,FCO Post Account,International Relations Division,FOREIGN AND COMMONWEALTH OFFICE,400147582,"1,101.36"
DFID,DFID,24/03/2011,FCO Post Account,Asia Division,FOREIGN AND COMMONWEALTH OFFICE,400147582,"16,070.98"
DFID,DFID,24/03/2011,FCO Post Account,International Relations Division,FOREIGN AND COMMONWEALTH OFFICE,400147582,796.41
DFID,DFID,24/03/2011,FCO Post Account,Human Resources Division,FOREIGN AND COMMONWEALTH OFFICE,400147582,508.32
DFID,DFID,24/03/2011,FCO Post Account,Asia Division,FOREIGN AND COMMONWEALTH OFFICE,400147582,"2,590.18"
DFID,DFID,24/03/2011,FCO Post Account,International Relations Division,FOREIGN AND COMMONWEALTH OFFICE,400147582,112.73
DFID,DFID,24/03/2011,FCO Post Account,Business Solutions Division Level,FOREIGN AND COMMONWEALTH OFFICE,400147582,672.77
DFID,DFID,24/03/2011,FCO Post Account,West and Southern Africa,FOREIGN AND COMMONWEALTH OFFICE,400147582,24.84
DFID,DFID,24/03/2011,FCO Post Account,International Relations Division,FOREIGN AND COMMONWEALTH OFFICE,400147582,-928.68
DFID,DFID,11/03/2011,FCO Post Account,Asia Division,FOREIGN AND COMMONWEALTH OFFICE,400147585,829.74
DFID,DFID,11/03/2011,FCO Post Account,Policy and Research Directorate,FOREIGN AND COMMONWEALTH OFFICE,400147585,"1,507.06"
DFID,DFID,11/03/2011,FCO Post Account,East and Central Africa,FOREIGN AND COMMONWEALTH OFFICE,400147585,771.95
DFID,DFID,11/03/2011,FCO Post Account,West and Southern Africa,FOREIGN AND COMMONWEALTH OFFICE,400147585,454.34
DFID,DFID,11/03/2011,FCO Post Account,East and Central Africa,FOREIGN AND COMMONWEALTH OFFICE,400147585,580.67
DFID,DFID,11/03/2011,FCO Post Account,Top Management Group,FOREIGN AND COMMONWEALTH OFFICE,400147585,979.79
DFID,DFID,11/03/2011,FCO Post Account,Asia Division,FOREIGN AND COMMONWEALTH OFFICE,400147585,"5,049.84"
DFID,DFID,11/03/2011,FCO Post Account,Asia Division,FOREIGN AND COMMONWEALTH OFFICE,400147585,"24,855.44"
DFID,DFID,11/03/2011,FCO Post Account,"Security & Humanitarian, Middle East, Caribbean & Overseas Territories Division",FOREIGN AND COMMONWEALTH OFFICE,400147585,"1,603.06"
DFID,DFID,11/03/2011,FCO Post Account,"Security & Humanitarian, Middle East, Caribbean & Overseas Territories Division",FOREIGN AND COMMONWEALTH OFFICE,400147585,"4,989.52"
DFID,DFID,11/03/2011,FCO Post Account,Asia Division,FOREIGN AND COMMONWEALTH OFFICE,400147585,-159.68
DFID,DFID,11/03/2011,FCO Post Account,East and Central Africa,FOREIGN AND COMMONWEALTH OFFICE,400147585,103.24
DFID,DFID,11/03/2011,FCO Post Account,Policy and Research Directorate,FOREIGN AND COMMONWEALTH OFFICE,400147585,8.23
DFID,DFID,10/03/2011,FCO Post Account,East and Central Africa,FOREIGN AND COMMONWEALTH OFFICE,400147604,628.26
DFID,DFID,10/03/2011,FCO Post Account,"Security & Humanitarian, Middle East, Caribbean & Overseas Territories Division",FOREIGN AND COMMONWEALTH OFFICE,400147604,"13,071.55"
DFID,DFID,10/03/2011,FCO Post Account,Western Asia and Stabilisation Division,FOREIGN AND COMMONWEALTH OFFICE,400147604,"1,324.28"
DFID,DFID,10/03/2011,FCO Post Account,Asia Division,FOREIGN AND COMMONWEALTH OFFICE,400147604,"7,402.49"
DFID,DFID,10/03/2011,FCO Post Account,Asia Division,FOREIGN AND COMMONWEALTH OFFICE,400147604,"6,085.90"
DFID,DFID,10/03/2011,FCO Post Account,"Security & Humanitarian, Middle East, Caribbean & Overseas Territories Division",FOREIGN AND COMMONWEALTH OFFICE,400147604,252.81
DFID,DFID,10/03/2011,FCO Post Account,East and Central Africa,FOREIGN AND COMMONWEALTH OFFICE,400147604,190.23
DFID,DFID,10/03/2011,FCO Post Account,Asia Division,FOREIGN AND COMMONWEALTH OFFICE,400147604,"8,356.92"
DFID,DFID,10/03/2011,FCO Post Account,"Security & Humanitarian, Middle East, Caribbean & Overseas Territories Division",FOREIGN AND COMMONWEALTH OFFICE,400147604,397.08
DFID,DFID,10/03/2011,FCO Post Account,East and Central Africa,FOREIGN AND COMMONWEALTH OFFICE,400147604,139.93
DFID,DFID,10/03/2011,FCO Post Account,Business Solutions Division Level,FOREIGN AND COMMONWEALTH OFFICE,400147604,"9,288.08"
DFID,DFID,10/03/2011,FCO Post Account,Policy and Research Directorate,FOREIGN AND COMMONWEALTH OFFICE,400147604,724.34
DFID,DFID,10/03/2011,FCO Post Account,Asia Division,FOREIGN AND COMMONWEALTH OFFICE,400147604,953.81
DFID,DFID,10/03/2011,FCO Post Account,West and Southern Africa,FOREIGN AND COMMONWEALTH OFFICE,400147604,"1,200.07"
DFID,DFID,10/03/2011,FCO Post Account,West and Southern Africa,FOREIGN AND COMMONWEALTH OFFICE,400147604,27.82
DFID,DFID,10/03/2011,FCO Post Account,East and Central Africa,FOREIGN AND COMMONWEALTH OFFICE,400147604,"54,864.26"
DFID,DFID,10/03/2011,FCO Post Account,West and Southern Africa,FOREIGN AND COMMONWEALTH OFFICE,400147604,"2,929.28"
DFID,DFID,10/03/2011,FCO Post Account,Western Asia and Stabilisation Division,FOREIGN AND COMMONWEALTH OFFICE,400147604,16.27
DFID,DFID,14/03/2011,FCO Post Account,Business Solutions Division Level,FOREIGN AND COMMONWEALTH OFFICE,400148266,195.03
DFID,DFID,14/03/2011,FCO Post Account,Asia Division,FOREIGN AND COMMONWEALTH OFFICE,400148266,"63,975.38"
DFID,DFID,14/03/2011,FCO Post Account,International Relations Division,FOREIGN AND COMMONWEALTH OFFICE,400148266,"7,151.38"
DFID,DFID,14/03/2011,FCO Post Account,Asia Division,FOREIGN AND COMMONWEALTH OFFICE,400148266,"3,341.77"
DFID,DFID,14/03/2011,FCO Post Account,International Relations Division,FOREIGN AND COMMONWEALTH OFFICE,400148266,693.48
DFID,DFID,14/03/2011,FCO Post Account,Policy and Research Directorate,FOREIGN AND COMMONWEALTH OFFICE,400148266,16.71
DFID,DFID,14/03/2011,FCO Post Account,International Relations Division,FOREIGN AND COMMONWEALTH OFFICE,400148266,165.17
DFID,DFID,14/03/2011,FCO Post Account,"Security & Humanitarian, Middle East, Caribbean & Overseas Territories Division",FOREIGN AND COMMONWEALTH OFFICE,400148373,"24,285.73"
DFID,DFID,14/03/2011,FCO Post Account,Business Solutions Division Level,FOREIGN AND COMMONWEALTH OFFICE,400148373,542.78
DFID,DFID,14/03/2011,FCO Post Account,International Relations Division,FOREIGN AND COMMONWEALTH OFFICE,400148373,"30,701.97"
DFID,DFID,14/03/2011,FCO Post Account,Human Resources Division,FOREIGN AND COMMONWEALTH OFFICE,400148373,693.97
DFID,DFID,14/03/2011,FCO Post Account,Asia Division,FOREIGN AND COMMONWEALTH OFFICE,400148373,164.37
DFID,DFID,15/03/2011,FCO Post Account,East and Central Africa,FOREIGN AND COMMONWEALTH OFFICE,400148769,"1,007.32"
DFID,DFID,15/03/2011,FCO Post Account,East and Central Africa,FOREIGN AND COMMONWEALTH OFFICE,400148769,95.79
DFID,DFID,25/03/2011,FCO Post Account,Central Department Division,FOREIGN AND COMMONWEALTH OFFICE,400151192,"107,909.32"
DFID,DFID,25/03/2011,FCO Post Account,Central Department Division,FOREIGN AND COMMONWEALTH OFFICE,400151198,"127,673.04"
DFID,DFID,28/03/2011,FCO Post Account,International Relations Division,FOREIGN AND COMMONWEALTH OFFICE,400151399,"26,136.99"
DFID,DFID,31/03/2011,FCO Post Account,"Security & Humanitarian, Middle East, Caribbean & Overseas Territories Division",FOREIGN AND COMMONWEALTH OFFICE,400152596,"23,192.95"
DFID,DFID,31/03/2011,FCO Post Account,International Relations Division,FOREIGN AND COMMONWEALTH OFFICE,400152596,53.57
DFID,DFID,31/03/2011,FCO Post Account,International Finance Division,FOREIGN AND COMMONWEALTH OFFICE,400152596,39.4
DFID,DFID,31/03/2011,FCO Post Account,International Relations Division,FOREIGN AND COMMONWEALTH OFFICE,400152596,"1,499.76"
DFID,DFID,31/03/2011,FCO Post Account,Business Solutions Division Level,FOREIGN AND COMMONWEALTH OFFICE,400152596,"3,147.19"
DFID,DFID,31/03/2011,Furniture & Fittings,East and Central Africa,Natwest Government Procurement Card,100037,"3,700.68"
DFID,DFID,18/03/2011,Furniture & Fittings,Policy and Research Directorate,R M B Engineers and Builders Pvt Ltd,400149484,"2,186.43"
DFID,DFID,18/03/2011,Furniture & Fittings,Asia Division,R M B Engineers and Builders Pvt Ltd,400149484,"7,653.38"
DFID,DFID,18/03/2011,Furniture & Fittings,Policy and Research Directorate,R M B Engineers and Builders Pvt Ltd,400149484,"3,280.36"
DFID,DFID,23/03/2011,Hardware,Business Solutions Division Level,CABLE & WIRELESS COMMUN,400150683,"110,001.00"
DFID,DFID,31/03/2011,Hardware,Business Solutions Division Level,Natwest Government Procurement Card,100037,12.92
DFID,DFID,31/03/2011,Hardware,Finance and Corporate Performance Division,Natwest Government Procurement Card,100037,784.8
DFID,DFID,31/03/2011,Hardware,Human Resources Division,Natwest Government Procurement Card,100037,606.82
DFID,DFID,31/03/2011,Hardware,West and Southern Africa,Natwest Government Procurement Card,100037,"4,729.43"
DFID,DFID,31/03/2011,Hardware,Western Asia and Stabilisation Division,Natwest Government Procurement Card,100037,8.98
DFID,DFID,08/03/2011,Hardware,West and Southern Africa,THE CROWN AGENTS,400147172,"5,542.43"
DFID,DFID,08/03/2011,Hardware,West and Southern Africa,THE CROWN AGENTS,400147172,"-5,542.43"
DFID,DFID,25/03/2011,Hardware,West and Southern Africa,THE CROWN AGENTS,400148178,"22,876.91"
DFID,DFID,15/03/2011,Legal costs,"Security & Humanitarian, Middle East, Caribbean & Overseas Territories Division",THE CROWN AGENTS,400148785,"39,175.00"
DFID,DFID,17/03/2011,Legal costs,"Security & Humanitarian, Middle East, Caribbean & Overseas Territories Division",THE CROWN AGENTS,400149068,"44,900.00"
DFID,DFID,09/03/2011,Medical & Health Supplies/Services,Human Resources Division,FOREIGN AND COMMONWEALTH OFFICE,400147520,239.67
DFID,DFID,09/03/2011,Medical & Health Supplies/Services,Human Resources Division,FOREIGN AND COMMONWEALTH OFFICE,400147520,517.43
DFID,DFID,30/03/2011,Medical & Health Supplies/Services,Asia Division,FUTURE GENERALI INDIA INSURANCE CO.,400151998,"83,811.08"
DFID,DFID,25/03/2011,Medical & Health Supplies/Services,Western Asia and Stabilisation Division,THE CROWN AGENTS,400137991,"6,152.14"
DFID,DFID,25/03/2011,Medical & Health Supplies/Services,Western Asia and Stabilisation Division,THE CROWN AGENTS,400137991,549.36
DFID,DFID,03/03/2011,Medical & Health Supplies/Services,West and Southern Africa,THE CROWN AGENTS,400146551,"42,321.81"
DFID,DFID,03/03/2011,Medical & Health Supplies/Services,West and Southern Africa,THE CROWN AGENTS,400146552,"190,069.69"
DFID,DFID,04/03/2011,Medical & Health Supplies/Services,West and Southern Africa,THE CROWN AGENTS,400146627,"68,245.74"
DFID,DFID,04/03/2011,Medical & Health Supplies/Services,West and Southern Africa,THE CROWN AGENTS,400146809,"88,263.58"
DFID,DFID,08/03/2011,Medical & Health Supplies/Services,West and Southern Africa,THE CROWN AGENTS,400147172,"677,829.30"
DFID,DFID,11/03/2011,Medical & Health Supplies/Services,West and Southern Africa,THE CROWN AGENTS,400148039,"400,315.62"
DFID,DFID,25/03/2011,Medical & Health Supplies/Services,West and Southern Africa,THE CROWN AGENTS,400148178,"41,923.54"
DFID,DFID,17/03/2011,Medical & Health Supplies/Services,West and Southern Africa,THE CROWN AGENTS,400149049,"100,101.75"
DFID,DFID,31/03/2011,Office Equipment,Finance and Corporate Performance Division,Natwest Government Procurement Card,100037,11.2
DFID,DFID,31/03/2011,Office Equipment,Human Resources Division,Natwest Government Procurement Card,100037,489.62
DFID,DFID,31/03/2011,Office Equipment,West and Southern Africa,Natwest Government Procurement Card,100037,780
DFID,DFID,04/03/2011,Office Equipment,East and Central Africa,THE CROWN AGENTS,400146756,"250,749.75"
DFID,DFID,04/03/2011,Office Equipment,East and Central Africa,THE CROWN AGENTS,400146756,"-67,013.73"
DFID,DFID,28/03/2011,Office Equipment,West and Southern Africa,THE CROWN AGENTS,400151392,"27,852.76"
DFID,DFID,31/03/2011,Other Admin Costs,Business Solutions Division Level,Natwest Government Procurement Card,100037,522.13
DFID,DFID,31/03/2011,Other Admin Costs,Communications Division,Natwest Government Procurement Card,100037,52.95
DFID,DFID,09/03/2011,"Printing, Stationary & Postage","Security & Humanitarian, Middle East, Caribbean & Overseas Territories Division",FOREIGN AND COMMONWEALTH OFFICE,400147520,68.98
DFID,DFID,31/03/2011,"Printing, Stationary & Postage",Human Resources Division,Natwest Government Procurement Card,100037,"5,169.54"
DFID,DFID,31/03/2011,"Printing, Stationary & Postage",Policy and Research Directorate,Natwest Government Procurement Card,100037,-28.99
DFID,DFID,31/03/2011,"Printing, Stationary & Postage",Top Management Group,Natwest Government Procurement Card,100037,452.51
DFID,DFID,31/03/2011,"Printing, Stationary & Postage",West and Southern Africa,Natwest Government Procurement Card,100037,108.19
DFID,DFID,31/03/2011,"Printing, Stationary & Postage",Western Asia and Stabilisation Division,Natwest Government Procurement Card,100037,"6,237.46"
DFID,DFID,25/03/2011,"Printing, Stationary & Postage",Western Asia and Stabilisation Division,THE CROWN AGENTS,400137991,130.4
DFID,DFID,31/03/2011,Professional member subscriptions,Business Solutions Division Level,Natwest Government Procurement Card,100037,240
DFID,DFID,31/03/2011,Professional member subscriptions,Human Resources Division,Natwest Government Procurement Card,100037,137.4
DFID,DFID,31/03/2011,Professional member subscriptions,Policy and Research Directorate,Natwest Government Procurement Card,100037,"2,400.00"
DFID,DFID,21/03/2011,Property & Construction Services,Asia Division,ADEX Corporation Limited,400149853,"29,724.09"
DFID,DFID,03/03/2011,Property & Construction Services,East and Central Africa,Athi River construction Company,400146576,"26,834.47"
DFID,DFID,30/03/2011,Property & Construction Services,Asia Division,Crown Agents Financial Services Limited,400152299,"642,000.00"
DFID,DFID,28/03/2011,Property & Construction Services,East and Central Africa,DMS AFRICA,400144179,"39,019.16"
DFID,DFID,16/03/2011,Property & Construction Services,Human Resources Division,MITIE Technical Facilities Management Ltd,400149032,"7,154.52"
DFID,DFID,16/03/2011,Property & Construction Services,Human Resources Division,MITIE Technical Facilities Management Ltd,400149032,"5,477.16"
DFID,DFID,28/03/2011,Property & Construction Services,East and Central Africa,THE CROWN AGENTS,400147216,"106,212.60"
DFID,DFID,03/03/2011,Property & Construction Services,"Security & Humanitarian, Middle East, Caribbean & Overseas Territories Division",TURNER & TOWNSEND,400146568,"104,794.57"
DFID,DFID,10/03/2011,Property & Construction Services,West and Southern Africa,TURNER & TOWNSEND,400147865,"39,646.94"
DFID,DFID,22/03/2011,Property & Construction Services,East and Central Africa,TURNER & TOWNSEND,400150419,"26,213.59"
DFID,DFID,24/03/2011,Property & Construction Services,West and Southern Africa,TURNER & TOWNSEND,400151127,"27,475.03"
DFID,DFID,09/03/2011,"Property Repairs, Maintenance & Alterations","Security & Humanitarian, Middle East, Caribbean & Overseas Territories Division",FOREIGN AND COMMONWEALTH OFFICE,400147520,49.25
DFID,DFID,16/03/2011,"Property Repairs, Maintenance & Alterations",Human Resources Division,MITIE Technical Facilities Management Ltd,400149032,"20,186.22"
DFID,DFID,16/03/2011,"Property Repairs, Maintenance & Alterations",Human Resources Division,MITIE Technical Facilities Management Ltd,400149032,"11,241.99"
DFID,DFID,31/03/2011,"Property Repairs, Maintenance & Alterations",Human Resources Division,Natwest Government Procurement Card,100037,684.03
DFID,DFID,25/03/2011,"Property Repairs, Maintenance & Alterations",Western Asia and Stabilisation Division,THE CROWN AGENTS,400137991,64.63
DFID,DFID,01/03/2011,Purchase of Vehicles,West and Southern Africa,Auto Transport Compagnie,400145794,"49,539.03"
DFID,DFID,30/03/2011,Purchase of Vehicles,West and Southern Africa,Crown Agents Bank,400152161,"62,289.71"
DFID,DFID,21/03/2011,Purchase of Vehicles,East and Central Africa,Saiba Trading Limited,400149808,"41,070.12"
DFID,DFID,08/03/2011,Purchase of Vehicles,West and Southern Africa,THE CROWN AGENTS,400147172,"1,785.00"
DFID,DFID,08/03/2011,Purchase of Vehicles,West and Southern Africa,THE CROWN AGENTS,400147172,"-1,785.00"
DFID,DFID,15/03/2011,Purchase of Vehicles,Asia Division,THE CROWN AGENTS,400148306,"44,799.00"
DFID,DFID,03/03/2011,Purchase of Vehicles,West and Southern Africa,Toyota Gibraltar Stockholdings Ltd,400145859,"37,330.32"
DFID,DFID,18/03/2011,Recruitment costs,Human Resources Division,CABINET OFFICE,400149723,"34,200.00"
DFID,DFID,31/03/2011,Recruitment costs,Finance and Corporate Performance Division,Natwest Government Procurement Card,100037,25
DFID,DFID,09/03/2011,Relocation costs,"Security & Humanitarian, Middle East, Caribbean & Overseas Territories Division",FOREIGN AND COMMONWEALTH OFFICE,400147520,12.54
DFID,DFID,09/03/2011,Research & Development,Policy and Research Directorate, Natural Environment Research Council,400147485,"28,243.20"
DFID,DFID,04/03/2011,Research & Development,Policy and Research Directorate,BOURNEMOUTH UNIVERSITY (MONTSERRAT),400146753,"28,201.20"
DFID,DFID,30/03/2011,Research & Development,Policy and Research Directorate,ECONOMIC & SOCIAL REASEARCH COUNCIL,400152597,"27,272.00"
DFID,DFID,23/03/2011,Research & Development,Policy and Research Directorate,GBS Re DFID Third Party Monies,400150763,"74,297.75"
DFID,DFID,09/03/2011,Research & Development,West and Southern Africa,HEALTH PARTNERS INTERNATIONAL,400147607,"86,923.65"
DFID,DFID,24/03/2011,Research & Development,Policy and Research Directorate,INSTITUTE OF DEVELOPMENT STUDIES,400147702,"13,771.50"
DFID,DFID,24/03/2011,Research & Development,Policy and Research Directorate,INSTITUTE OF DEVELOPMENT STUDIES,400147702,"13,771.50"
DFID,DFID,21/03/2011,Research & Development,Policy and Research Directorate,INSTITUTE OF DEVELOPMENT STUDIES,400149713,"37,500.00"
DFID,DFID,21/03/2011,Research & Development,Policy and Research Directorate,LONDON SCHOOL OF HYGIENE AND TR,400149429,"57,552.80"
DFID,DFID,07/03/2011,Research & Development,Asia Division,MET OFFICE,400146985,"51,916.00"
DFID,DFID,21/03/2011,Research & Development,Policy and Research Directorate,Natural Environment Research Council,400150007,"404,041.00"
DFID,DFID,28/03/2011,Research & Development,Policy and Research Directorate,OVERSEAS DEVELOPMENT INSTITUTE (ODI),400151312,"74,355.20"
DFID,DFID,01/03/2011,Research & Development,Policy and Research Directorate,Practical Action (GBP),400145167,"26,811.00"
DFID,DFID,04/03/2011,Research & Development,Policy and Research Directorate,Research into Results Ltd,400146730,"1,320,246.04"
DFID,DFID,10/03/2011,Research & Development,Policy and Research Directorate,Research into Results Ltd,400147743,"378,857.79"
DFID,DFID,29/03/2011,Research & Development,Policy and Research Directorate,Research into Results Ltd,400151807,"1,218,362.59"
DFID,DFID,04/03/2011,Research & Development,Policy and Research Directorate,ROYAL HOLLOWAY/UNIVERSITY OF LONDON,400146752,"29,622.50"
DFID,DFID,07/03/2011,Research & Development,Policy and Research Directorate,THE UNIVERSITY OF MANCHESTER,400147007,"59,984.81"
DFID,DFID,04/03/2011,Research & Development,Policy and Research Directorate,UNIVERSITY OF BRISTOL INCOME ACCOUN,400146630,"102,898.00"
DFID,DFID,03/03/2011,Research & Development,Policy and Research Directorate,University of California,400146151,"44,500.00"
DFID,DFID,22/03/2011,Research & Development,Policy and Research Directorate,University Of Sussex,400150339,"89,425.36"
DFID,DFID,21/03/2011,Research & Development,Policy and Research Directorate,WHO Human Reproduction Programme,400149785,"1,250,000.00"
DFID,DFID,09/03/2011,Shared Services,International Relations Division,FOREIGN AND COMMONWEALTH OFFICE,400147520,112.06
DFID,DFID,09/03/2011,Shared Services,International Relations Division,FOREIGN AND COMMONWEALTH OFFICE,400147520,73.86
DFID,DFID,09/03/2011,Shared Services,International Relations Division,FOREIGN AND COMMONWEALTH OFFICE,400147520,55.85
DFID,DFID,22/03/2011,Software,Business Solutions Division Level,LOGICACMG UK LTD.,400149100,"111,501.75"
DFID,DFID,26/03/2011,Software,Business Solutions Division Level,MICRO FOCUS LTD,400151499,"20,205.60"
DFID,DFID,26/03/2011,Software,Business Solutions Division Level,MICRO FOCUS LTD,400151499,"39,430.56"
DFID,DFID,31/03/2011,Software,Business Solutions Division Level,Natwest Government Procurement Card,100037,219.52
DFID,DFID,03/03/2011,Software,Business Solutions Division Level,ORACLE CORPORATION UK LIMITED,400146427,"28,558.26"
DFID,DFID,29/03/2011,Software,Business Solutions Division Level,ORACLE CORPORATION UK LIMITED,400151278,"36,312.79"
DFID,DFID,27/03/2011,Staff Business Travel and Subsistence,Communications Division,FOREIGN AND COMMONWEALTH OFFICE,400143537,263.31
DFID,DFID,09/03/2011,Staff Business Travel and Subsistence,Policy and Research Directorate,FOREIGN AND COMMONWEALTH OFFICE,400147520,-383.1
DFID,DFID,09/03/2011,Staff Business Travel and Subsistence,Top Management Group,FOREIGN AND COMMONWEALTH OFFICE,400147520,-383.1
DFID,DFID,09/03/2011,Staff Business Travel and Subsistence,Top Management Group,FOREIGN AND COMMONWEALTH OFFICE,400147520,"1,006.89"
DFID,DFID,09/03/2011,Staff Business Travel and Subsistence,"Security & Humanitarian, Middle East, Caribbean & Overseas Territories Division",FOREIGN AND COMMONWEALTH OFFICE,400147520,655.56
DFID,DFID,09/03/2011,Staff Business Travel and Subsistence,International Relations Division,FOREIGN AND COMMONWEALTH OFFICE,400147520,"-1,532.44"
DFID,DFID,28/03/2011,Staff Business Travel and Subsistence,Central Department Division,HOGG ROBINSON (TRAVEL) LTD,400150991,"1,380.65"
DFID,DFID,28/03/2011,Staff Business Travel and Subsistence,Central Department Division,HOGG ROBINSON (TRAVEL) LTD,400150991,"25,322.28"
DFID,DFID,28/03/2011,Staff Business Travel and Subsistence,Central Department Division,HOGG ROBINSON (TRAVEL) LTD,400150997,"1,390.06"
DFID,DFID,28/03/2011,Staff Business Travel and Subsistence,Central Department Division,HOGG ROBINSON (TRAVEL) LTD,400150997,"39,763.60"
DFID,DFID,10/03/2011,Staff Business Travel and Subsistence,Asia Division,Hogg Robinson Group,6000042,"7,122.85"
DFID,DFID,10/03/2011,Staff Business Travel and Subsistence,Business Solutions Division Level,Hogg Robinson Group,6000042,"8,900.62"
DFID,DFID,10/03/2011,Staff Business Travel and Subsistence,Communications Division,Hogg Robinson Group,6000042,371.97
DFID,DFID,10/03/2011,Staff Business Travel and Subsistence,East and Central Africa,Hogg Robinson Group,6000042,"32,201.25"
DFID,DFID,10/03/2011,Staff Business Travel and Subsistence,Evaluation Department,Hogg Robinson Group,6000042,"2,240.26"
DFID,DFID,10/03/2011,Staff Business Travel and Subsistence,Finance and Corporate Performance Division,Hogg Robinson Group,6000042,"6,865.85"
DFID,DFID,10/03/2011,Staff Business Travel and Subsistence,Human Resources Division,Hogg Robinson Group,6000042,"12,893.11"
DFID,DFID,10/03/2011,Staff Business Travel and Subsistence,Internal Audit,Hogg Robinson Group,6000042,"4,957.29"
DFID,DFID,10/03/2011,Staff Business Travel and Subsistence,International Finance Division,Hogg Robinson Group,6000042,"6,028.57"
DFID,DFID,10/03/2011,Staff Business Travel and Subsistence,International Relations Division,Hogg Robinson Group,6000042,"8,645.74"
DFID,DFID,10/03/2011,Staff Business Travel and Subsistence,Policy and Research Directorate,Hogg Robinson Group,6000042,"40,007.50"
DFID,DFID,10/03/2011,Staff Business Travel and Subsistence,"Security & Humanitarian, Middle East, Caribbean & Overseas Territories Division",Hogg Robinson Group,6000042,"5,631.03"
DFID,DFID,10/03/2011,Staff Business Travel and Subsistence,Top Management Group,Hogg Robinson Group,6000042,"-14,080.08"
DFID,DFID,10/03/2011,Staff Business Travel and Subsistence,West and Southern Africa,Hogg Robinson Group,6000042,"20,562.55"
DFID,DFID,10/03/2011,Staff Business Travel and Subsistence,Western Asia and Stabilisation Division,Hogg Robinson Group,6000042,"24,816.30"
DFID,DFID,24/03/2011,Staff Business Travel and Subsistence,Asia Division,Hogg Robinson Group,6000043,"14,280.20"
DFID,DFID,24/03/2011,Staff Business Travel and Subsistence,Business Solutions Division Level,Hogg Robinson Group,6000043,"7,954.63"
DFID,DFID,24/03/2011,Staff Business Travel and Subsistence,Communications Division,Hogg Robinson Group,6000043,"1,983.34"
DFID,DFID,24/03/2011,Staff Business Travel and Subsistence,East and Central Africa,Hogg Robinson Group,6000043,"10,629.16"
DFID,DFID,24/03/2011,Staff Business Travel and Subsistence,Evaluation Department,Hogg Robinson Group,6000043,"3,146.48"
DFID,DFID,24/03/2011,Staff Business Travel and Subsistence,Finance and Corporate Performance Division,Hogg Robinson Group,6000043,"5,799.40"
DFID,DFID,24/03/2011,Staff Business Travel and Subsistence,Human Resources Division,Hogg Robinson Group,6000043,"12,691.67"
DFID,DFID,24/03/2011,Staff Business Travel and Subsistence,Internal Audit,Hogg Robinson Group,6000043,"5,336.66"
DFID,DFID,24/03/2011,Staff Business Travel and Subsistence,International Finance Division,Hogg Robinson Group,6000043,"5,391.48"
DFID,DFID,24/03/2011,Staff Business Travel and Subsistence,International Relations Division,Hogg Robinson Group,6000043,"7,372.69"
DFID,DFID,10/03/2011,Staff Business Travel and Subsistence,Policy and Research Directorate,Hogg Robinson Group,6000043,"37,644.26"
DFID,DFID,10/03/2011,Staff Business Travel and Subsistence,"Security & Humanitarian, Middle East, Caribbean & Overseas Territories Division",Hogg Robinson Group,6000043,"15,148.61"
DFID,DFID,10/03/2011,Staff Business Travel and Subsistence,Top Management Group,Hogg Robinson Group,6000043,"15,536.90"
DFID,DFID,10/03/2011,Staff Business Travel and Subsistence,West and Southern Africa,Hogg Robinson Group,6000043,"15,323.77"
DFID,DFID,10/03/2011,Staff Business Travel and Subsistence,Western Asia and Stabilisation Division,Hogg Robinson Group,6000043,"44,151.63"
DFID,DFID,31/03/2011,Staff Business Travel and Subsistence,Asia Division,Hogg Robinson Group,6000044,"2,761.48"
DFID,DFID,31/03/2011,Staff Business Travel and Subsistence,Business Solutions Division Level,Hogg Robinson Group,6000044,"5,927.20"
DFID,DFID,31/03/2011,Staff Business Travel and Subsistence,Communications Division,Hogg Robinson Group,6000044,"1,003.71"
DFID,DFID,31/03/2011,Staff Business Travel and Subsistence,East and Central Africa,Hogg Robinson Group,6000044,"11,236.85"
DFID,DFID,31/03/2011,Staff Business Travel and Subsistence,Evaluation Department,Hogg Robinson Group,6000044,"1,988.02"
DFID,DFID,31/03/2011,Staff Business Travel and Subsistence,Finance and Corporate Performance Division,Hogg Robinson Group,6000044,"4,682.39"
DFID,DFID,31/03/2011,Staff Business Travel and Subsistence,Human Resources Division,Hogg Robinson Group,6000044,"9,861.79"
DFID,DFID,31/03/2011,Staff Business Travel and Subsistence,Internal Audit,Hogg Robinson Group,6000044,"2,719.53"
DFID,DFID,31/03/2011,Staff Business Travel and Subsistence,International Finance Division,Hogg Robinson Group,6000044,"13,575.89"
DFID,DFID,31/03/2011,Staff Business Travel and Subsistence,International Relations Division,Hogg Robinson Group,6000044,"13,796.95"
DFID,DFID,31/03/2011,Staff Business Travel and Subsistence,Policy and Research Directorate,Hogg Robinson Group,6000044,"27,492.59"
DFID,DFID,31/03/2011,Staff Business Travel and Subsistence,"Security & Humanitarian, Middle East, Caribbean & Overseas Territories Division",Hogg Robinson Group,6000044,"30,732.93"
DFID,DFID,31/03/2011,Staff Business Travel and Subsistence,Top Management Group,Hogg Robinson Group,6000044,"22,475.57"
DFID,DFID,31/03/2011,Staff Business Travel and Subsistence,West and Southern Africa,Hogg Robinson Group,6000044,"31,126.34"
DFID,DFID,31/03/2011,Staff Business Travel and Subsistence,Western Asia and Stabilisation Division,Hogg Robinson Group,6000044,"24,585.62"
DFID,DFID,31/03/2011,Staff Business Travel and Subsistence,Asia Division,Natwest Government Procurement Card,100037,"1,348.84"
DFID,DFID,31/03/2011,Staff Business Travel and Subsistence,Business Solutions Division Level,Natwest Government Procurement Card,100037,"2,266.70"
DFID,DFID,31/03/2011,Staff Business Travel and Subsistence,Finance and Corporate Performance Division,Natwest Government Procurement Card,100037,638.86
DFID,DFID,31/03/2011,Staff Business Travel and Subsistence,Human Resources Division,Natwest Government Procurement Card,100037,163.68
DFID,DFID,31/03/2011,Staff Business Travel and Subsistence,International Finance Division,Natwest Government Procurement Card,100037,"2,317.88"
DFID,DFID,31/03/2011,Staff Business Travel and Subsistence,International Relations Division,Natwest Government Procurement Card,100037,380.64
DFID,DFID,31/03/2011,Staff Business Travel and Subsistence,Policy and Research Directorate,Natwest Government Procurement Card,100037,"1,397.70"
DFID,DFID,31/03/2011,Staff Business Travel and Subsistence,"Security & Humanitarian, Middle East, Caribbean & Overseas Territories Division",Natwest Government Procurement Card,100037,330.16
DFID,DFID,31/03/2011,Staff Business Travel and Subsistence,Top Management Group,Natwest Government Procurement Card,100037,287.6
DFID,DFID,31/03/2011,Staff Business Travel and Subsistence,West and Southern Africa,Natwest Government Procurement Card,100037,"4,986.73"
DFID,DFID,31/03/2011,Staff Business Travel and Subsistence,Western Asia and Stabilisation Division,Natwest Government Procurement Card,100037,"2,210.06"
DFID,DFID,25/03/2011,Staff Business Travel and Subsistence,Western Asia and Stabilisation Division,THE CROWN AGENTS,400137991,98.11
DFID,DFID,28/03/2011,Staff training & Conferences,Western Asia and Stabilisation Division,COFFEY INTERNATIONAL DEVELOPMENT LTD,400151509,"25,080.00"
DFID,DFID,03/03/2011,Staff training & Conferences,West and Southern Africa,Communicaid Grp Ltd,400136975,"34,254.36"
DFID,DFID,17/03/2011,Staff training & Conferences,Business Solutions Division Level,GARTNERGROUP UK LTD,400149041,"61,560.00"
DFID,DFID,31/03/2011,Staff training & Conferences,Asia Division,Natwest Government Procurement Card,100037,96.01
DFID,DFID,31/03/2011,Staff training & Conferences,Business Solutions Division Level,Natwest Government Procurement Card,100037,"3,106.20"
DFID,DFID,31/03/2011,Staff training & Conferences,Finance and Corporate Performance Division,Natwest Government Procurement Card,100037,64.63
DFID,DFID,31/03/2011,Staff training & Conferences,Policy and Research Directorate,Natwest Government Procurement Card,100037,"5,006.01"
DFID,DFID,31/03/2011,Staff training & Conferences,"Security & Humanitarian, Middle East, Caribbean & Overseas Territories Division",Natwest Government Procurement Card,100037,259.72
DFID,DFID,31/03/2011,Staff training & Conferences,West and Southern Africa,Natwest Government Procurement Card,100037,"1,986.52"
DFID,DFID,31/03/2011,Staff training & Conferences,Western Asia and Stabilisation Division,Natwest Government Procurement Card,100037,120
DFID,DFID,25/03/2011,Storage & Distribution costs,Western Asia and Stabilisation Division,THE CROWN AGENTS,400137991,"18,580.71"
DFID,DFID,31/03/2011,Subscriptions,Asia Division,Natwest Government Procurement Card,100037,168.47
DFID,DFID,31/03/2011,Subscriptions,Communications Division,Natwest Government Procurement Card,100037,44.52
DFID,DFID,31/03/2011,Subscriptions,Finance and Corporate Performance Division,Natwest Government Procurement Card,100037,240
DFID,DFID,31/03/2011,Subscriptions,West and Southern Africa,Natwest Government Procurement Card,100037,12.89
DFID,DFID,22/03/2011,Technical & Advisory services,East and Central Africa,  KPMG,400150118,"34,577.00"
DFID,DFID,24/03/2011,Technical & Advisory services,East and Central Africa, ACCESS TO FINANCE RWANDA,400150562,"40,000.00"
DFID,DFID,24/03/2011,Technical & Advisory services,East and Central Africa, ACCESS TO FINANCE RWANDA,400150565,"500,000.00"
DFID,DFID,03/03/2011,Technical & Advisory services,West and Southern Africa,ABT ASSOCIATES INC,400146377,"1,561,123.16"
DFID,DFID,29/03/2011,Technical & Advisory services,West and Southern Africa,ABT ASSOCIATES INC,400149796,"300,000.00"
DFID,DFID,29/03/2011,Technical & Advisory services,West and Southern Africa,ABT ASSOCIATES INC,400149796,"1,126,433.48"
DFID,DFID,01/03/2011,Technical & Advisory services,Asia Division,ADAM SMITH INTERNATIONAL  LTD,400145519,"96,536.26"
DFID,DFID,02/03/2011,Technical & Advisory services,East and Central Africa,ADAM SMITH INTERNATIONAL  LTD,400146142,"36,559.67"
DFID,DFID,14/03/2011,Technical & Advisory services,Asia Division,ADAM SMITH INTERNATIONAL  LTD,400148337,"36,965.25"
DFID,DFID,16/03/2011,Technical & Advisory services,Western Asia and Stabilisation Division,ADAM SMITH INTERNATIONAL  LTD,400148437,"216,330.61"
DFID,DFID,23/03/2011,Technical & Advisory services,East and Central Africa,ADAM SMITH INTERNATIONAL  LTD,400149073,"469,606.96"
DFID,DFID,23/03/2011,Technical & Advisory services,East and Central Africa,ADAM SMITH INTERNATIONAL  LTD,400149360,"31,194.98"
DFID,DFID,23/03/2011,Technical & Advisory services,East and Central Africa,ADAM SMITH INTERNATIONAL  LTD,400149360,"105,964.08"
DFID,DFID,21/03/2011,Technical & Advisory services,"Security & Humanitarian, Middle East, Caribbean & Overseas Territories Division",ADAM SMITH INTERNATIONAL  LTD,400150096,"101,932.80"
DFID,DFID,21/03/2011,Technical & Advisory services,East and Central Africa,ADAM SMITH INTERNATIONAL  LTD,400150101,"89,418.87"
DFID,DFID,21/03/2011,Technical & Advisory services,East and Central Africa,ADAM SMITH INTERNATIONAL  LTD,400150104,"42,791.26"
DFID,DFID,22/03/2011,Technical & Advisory services,Asia Division,ADAM SMITH INTERNATIONAL  LTD,400150106,"59,152.18"
DFID,DFID,25/03/2011,Technical & Advisory services,East and Central Africa,ADAM SMITH INTERNATIONAL  LTD,400151085,"29,870.27"
DFID,DFID,25/03/2011,Technical & Advisory services,East and Central Africa,ADAM SMITH INTERNATIONAL  LTD,400151087,"33,087.51"
DFID,DFID,25/03/2011,Technical & Advisory services,Asia Division,ADAM SMITH INTERNATIONAL  LTD,400151412,"39,030.45"
DFID,DFID,30/03/2011,Technical & Advisory services,West and Southern Africa,ADAM SMITH INTERNATIONAL  LTD,400152474,"210,124.50"
DFID,DFID,30/03/2011,Technical & Advisory services,West and Southern Africa,ADAM SMITH INTERNATIONAL  LTD,400152479,"216,774.71"
DFID,DFID,30/03/2011,Technical & Advisory services,West and Southern Africa,ADAM SMITH INTERNATIONAL  LTD,400152481,"626,493.61"
DFID,DFID,31/03/2011,Technical & Advisory services,"Security & Humanitarian, Middle East, Caribbean & Overseas Territories Division",AIR PARTNER PLC,400152801,"210,270.67"
DFID,DFID,31/03/2011,Technical & Advisory services,"Security & Humanitarian, Middle East, Caribbean & Overseas Territories Division",AIR PARTNER PLC,400152802,"210,454.22"
DFID,DFID,31/03/2011,Technical & Advisory services,"Security & Humanitarian, Middle East, Caribbean & Overseas Territories Division",AIR PARTNER PLC,400152805,"70,517.29"
DFID,DFID,07/03/2011,Technical & Advisory services,"Security & Humanitarian, Middle East, Caribbean & Overseas Territories Division",ALLNATIVE  SERVICES,400146736,"36,986.71"
DFID,DFID,25/03/2011,Technical & Advisory services,"Security & Humanitarian, Middle East, Caribbean & Overseas Territories Division",ALLNATIVE  SERVICES,400149778,"30,176.48"
DFID,DFID,22/03/2011,Technical & Advisory services,"Security & Humanitarian, Middle East, Caribbean & Overseas Territories Division",ASSOCIATES FOR INTERNATIONAL DEVELOPMENT (AID INC),400148825,"84,892.47"
DFID,DFID,11/03/2011,Technical & Advisory services,West and Southern Africa,ATOS CONSULTING LIMITED,400148132,"35,961.00"
DFID,DFID,18/03/2011,Technical & Advisory services,East and Central Africa,ATOS CONSULTING LIMITED,400149788,"305,538.00"
DFID,DFID,23/03/2011,Technical & Advisory services,East and Central Africa,ATOS CONSULTING LIMITED,400150126,"302,238.00"
DFID,DFID,07/03/2011,Technical & Advisory services,Asia Division,BMB MOTT  MACDONALD,400144142,"606,582.73"
DFID,DFID,17/03/2011,Technical & Advisory services,Asia Division,BMB MOTT  MACDONALD,400148805,"579,217.36"
DFID,DFID,16/03/2011,Technical & Advisory services,Asia Division,BMB MOTT  MACDONALD,400148808,"48,276.32"
DFID,DFID,01/03/2011,Technical & Advisory services,West and Southern Africa,BRITISH COUNCIL,400144097,"224,710.84"
DFID,DFID,01/03/2011,Technical & Advisory services,West and Southern Africa,BRITISH COUNCIL,400144097,"59,200.68"
DFID,DFID,16/03/2011,Technical & Advisory services,West and Southern Africa,BRITISH COUNCIL,400147144,"382,868.70"
DFID,DFID,11/03/2011,Technical & Advisory services,Communications Division,BRITISH COUNCIL,400148031,"54,685.78"
DFID,DFID,11/03/2011,Technical & Advisory services,Communications Division,BRITISH COUNCIL,400148031,"14,714.10"
DFID,DFID,11/03/2011,Technical & Advisory services,Policy and Research Directorate,BRITISH COUNCIL,400148102,"44,467.36"
DFID,DFID,16/03/2011,Technical & Advisory services,West and Southern Africa,BRITISH COUNCIL,400149071,"156,823.86"
DFID,DFID,23/03/2011,Technical & Advisory services,"Security & Humanitarian, Middle East, Caribbean & Overseas Territories Division",BRITISH COUNCIL,400150284,"38,499.85"
DFID,DFID,23/03/2011,Technical & Advisory services,Communications Division,BRITISH COUNCIL,400150752,"676,125.30"
DFID,DFID,23/03/2011,Technical & Advisory services,Communications Division,BRITISH COUNCIL,400150752,"868,603.11"
DFID,DFID,25/03/2011,Technical & Advisory services,West and Southern Africa,BRITISH COUNCIL,400151333,"43,855.49"
DFID,DFID,28/03/2011,Technical & Advisory services,Communications Division,BRITISH COUNCIL,400151793,"42,850.67"
DFID,DFID,18/03/2011,Technical & Advisory services,Policy and Research Directorate,CAB INTERNATIONAL,400149686,"36,405.10"
DFID,DFID,17/03/2011,Technical & Advisory services,West and Southern Africa,Cambridge  Education Limited,400148445,"783,841.35"
DFID,DFID,17/03/2011,Technical & Advisory services,West and Southern Africa,Cambridge  Education Limited,400148445,"634,886.07"
DFID,DFID,11/03/2011,Technical & Advisory services,East and Central Africa,CAMBRIDGE EDUCATION LTD,400148032,"29,447.63"
DFID,DFID,07/03/2011,Technical & Advisory services,West and Southern Africa,CARE INTERNATIONAL,400147017,"39,184.46"
DFID,DFID,22/03/2011,Technical & Advisory services,Asia Division,CARE INTERNATIONAL,400150269,"134,650.63"
DFID,DFID,22/03/2011,Technical & Advisory services,Asia Division,CARE INTERNATIONAL,400150273,"58,241.41"
DFID,DFID,14/03/2011,Technical & Advisory services,West and Southern Africa,CARE INTERNATIONAL UK,400147199,"4,649.00"
DFID,DFID,14/03/2011,Technical & Advisory services,West and Southern Africa,CARE INTERNATIONAL UK,400147199,"10,187.92"
DFID,DFID,14/03/2011,Technical & Advisory services,West and Southern Africa,CARE INTERNATIONAL UK,400147199,"24,269.99"
DFID,DFID,09/03/2011,Technical & Advisory services,West and Southern Africa,CARE INTERNATIONAL UK,400147201,"36,914.75"
DFID,DFID,08/03/2011,Technical & Advisory services,Asia Division,CATALYST MANAGEMENT SERVICES PVT LTD,400147102,"59,587.16"
DFID,DFID,15/03/2011,Technical & Advisory services,East and Central Africa,CHARLES KENDALL & PARTNERS LTD,400148450,"50,000.00"
DFID,DFID,01/03/2011,Technical & Advisory services,West and Southern Africa,CHEMONICS,400145592,"204,627.79"
DFID,DFID,18/03/2011,Technical & Advisory services,Asia Division,CHRISTIAN AID,400148029,"30,000.00"
DFID,DFID,15/03/2011,Technical & Advisory services,Asia Division,CHRISTIAN AID,400148095,"826,362.72"
DFID,DFID,15/03/2011,Technical & Advisory services,Asia Division,CHRISTIAN AID,400148095,"-171,191.25"
DFID,DFID,26/03/2011,Technical & Advisory services,Asia Division,CHRISTIAN AID,400151517,"45,028.25"
DFID,DFID,31/03/2011,Technical & Advisory services,"Security & Humanitarian, Middle East, Caribbean & Overseas Territories Division",CIPFA,400151953,"56,742.63"
DFID,DFID,02/03/2011,Technical & Advisory services,Policy and Research Directorate,Clean Energy Group,400144978,"32,000.00"
DFID,DFID,02/03/2011,Technical & Advisory services,International Relations Division,COFFEY INTERNATIONAL DEVELOPMENT LTD,400146143,"57,488.24"
DFID,DFID,08/03/2011,Technical & Advisory services,Asia Division,COFFEY INTERNATIONAL DEVELOPMENT LTD,400146981,"77,516.00"
DFID,DFID,08/03/2011,Technical & Advisory services,International Relations Division,COFFEY INTERNATIONAL DEVELOPMENT LTD,400146986,"121,910.86"
DFID,DFID,14/03/2011,Technical & Advisory services,West and Southern Africa,COFFEY INTERNATIONAL DEVELOPMENT LTD,400146989,"37,692.37"
DFID,DFID,15/03/2011,Technical & Advisory services,East and Central Africa,COFFEY INTERNATIONAL DEVELOPMENT LTD,400148604,"52,616.62"
DFID,DFID,18/03/2011,Technical & Advisory services,"Security & Humanitarian, Middle East, Caribbean & Overseas Territories Division",COFFEY INTERNATIONAL DEVELOPMENT LTD,400148650,"32,625.00"
DFID,DFID,29/03/2011,Technical & Advisory services,West and Southern Africa,COFFEY INTERNATIONAL DEVELOPMENT LTD,400151524,"49,406.83"
DFID,DFID,28/03/2011,Technical & Advisory services,West and Southern Africa,COFFEY INTERNATIONAL DEVELOPMENT LTD,400151795,"278,221.11"
DFID,DFID,29/03/2011,Technical & Advisory services,East and Central Africa,COFFEY INTERNATIONAL DEVELOPMENT LTD,400151797,"25,851.03"
DFID,DFID,28/03/2011,Technical & Advisory services,East and Central Africa,COFFEY INTERNATIONAL DEVELOPMENT LTD,400151801,"40,027.95"
DFID,DFID,08/03/2011,Technical & Advisory services,Asia Division,CONSTELLA FUTURES,400144585,"253,105.68"
DFID,DFID,08/03/2011,Technical & Advisory services,Asia Division,CONSTELLA FUTURES,400144585,"-189,331.82"
DFID,DFID,08/03/2011,Technical & Advisory services,Asia Division,CONSTELLA FUTURES,400144585,"24,280.48"
DFID,DFID,21/03/2011,Technical & Advisory services,Asia Division,CONSTELLA FUTURES,400150111,"67,090.65"
DFID,DFID,21/03/2011,Technical & Advisory services,Asia Division,CONSTELLA FUTURES,400150111,"32,690.75"
DFID,DFID,25/03/2011,Technical & Advisory services,Asia Division,CROWN AGENTS (INDIA) PVT. LTD,400149346,"41,070.18"
DFID,DFID,25/03/2011,Technical & Advisory services,Asia Division,CROWN AGENTS (INDIA) PVT. LTD,400149354,"37,061.31"
DFID,DFID,25/03/2011,Technical & Advisory services,Asia Division,CROWN AGENTS (INDIA) PVT. LTD,400149359,"38,549.10"
DFID,DFID,02/03/2011,Technical & Advisory services,West and Southern Africa,Crown Agents Bank,400145853,"86,947.27"
DFID,DFID,02/03/2011,Technical & Advisory services,Policy and Research Directorate,Crown Agents Bank,400146147,"583,003.09"
DFID,DFID,02/03/2011,Technical & Advisory services,"Security & Humanitarian, Middle East, Caribbean & Overseas Territories Division",Crown Agents Bank,400146147,"-20,000.00"
DFID,DFID,02/03/2011,Technical & Advisory services,"Security & Humanitarian, Middle East, Caribbean & Overseas Territories Division",Crown Agents Bank,400146147,"20,000.00"
DFID,DFID,03/03/2011,Technical & Advisory services,East and Central Africa,Crown Agents Bank,400146549,"2,200,000.00"
DFID,DFID,16/03/2011,Technical & Advisory services,East and Central Africa,Crown Agents Bank,400149005,"4,000,000.00"
DFID,DFID,21/03/2011,Technical & Advisory services,"Security & Humanitarian, Middle East, Caribbean & Overseas Territories Division",Crown Agents Bank,400150057,"338,491.00"
DFID,DFID,21/03/2011,Technical & Advisory services,"Security & Humanitarian, Middle East, Caribbean & Overseas Territories Division",Crown Agents Bank,400150123,"66,664.00"
DFID,DFID,26/03/2011,Technical & Advisory services,"Security & Humanitarian, Middle East, Caribbean & Overseas Territories Division",Crown Agents Bank,400151454,"322,634.00"
DFID,DFID,30/03/2011,Technical & Advisory services,West and Southern Africa,Crown Agents Bank,400152161,"1,806.40"
DFID,DFID,17/03/2011,Technical & Advisory services,Asia Division,CSC  & CO,400148979,"45,684.00"
DFID,DFID,22/03/2011,Technical & Advisory services,"Security & Humanitarian, Middle East, Caribbean & Overseas Territories Division",DAI EUROPE LIMITED,400150304,"22,240.37"
DFID,DFID,22/03/2011,Technical & Advisory services,"Security & Humanitarian, Middle East, Caribbean & Overseas Territories Division",DAI EUROPE LIMITED,400150306,"57,200.89"
DFID,DFID,31/03/2011,Technical & Advisory services,West and Southern Africa,DAI EUROPE LIMITED,400152722,"167,705.95"
DFID,DFID,24/03/2011,Technical & Advisory services,Evaluation Department,DANISH INSTITUTE FOR INTERNATIONAL STUDIES,400150746,"75,000.00"
DFID,DFID,18/03/2011,Technical & Advisory services,Asia Division,DELOITTE TOUCHE TOHAMATSU INDIA PRIVATE LTD (DTTIPL),400149415,"128,005.00"
DFID,DFID,18/03/2011,Technical & Advisory services,Asia Division,DELOITTE TOUCHE TOHAMATSU INDIA PRIVATE LTD (DTTIPL),400149420,"26,615.00"
DFID,DFID,23/03/2011,Technical & Advisory services,Asia Division,DELOITTE TOUCHE TOHMATSU INDIA PRIVA,400150611,"30,079.78"
DFID,DFID,23/03/2011,Technical & Advisory services,Asia Division,DELOITTE TOUCHE TOHMATSU INDIA PRIVA,400150633,"35,492.37"
DFID,DFID,28/03/2011,Technical & Advisory services,West and Southern Africa,Dr. Alister Munthali,400151824,"33,128.83"
DFID,DFID,15/03/2011,Technical & Advisory services,International Relations Division,ECOTEC RESEARCH AND CONSULTING LTD,400148709,"125,334.00"
DFID,DFID,15/03/2011,Technical & Advisory services,West and Southern Africa,EFFECTIVE DEVELOPMENT GROUP (EDG),400148421,"118,911.79"
DFID,DFID,02/03/2011,Technical & Advisory services,International Finance Division,EMERGING MARKETS GROUP,400146208,"57,535.00"
DFID,DFID,16/03/2011,Technical & Advisory services,Asia Division,EMERGING MARKETS GROUP,400149044,"59,917.35"
DFID,DFID,24/03/2011,Technical & Advisory services,Policy and Research Directorate,FAO (USD),400150709,"70,000.00"
DFID,DFID,09/03/2011,Technical & Advisory services,International Relations Division,FOREIGN AND COMMONWEALTH OFFICE,400147520,30.42
DFID,DFID,09/03/2011,Technical & Advisory services,International Relations Division,FOREIGN AND COMMONWEALTH OFFICE,400147520,2.14
DFID,DFID,09/03/2011,Technical & Advisory services,International Relations Division,FOREIGN AND COMMONWEALTH OFFICE,400147520,0.55
DFID,DFID,09/03/2011,Technical & Advisory services,International Relations Division,FOREIGN AND COMMONWEALTH OFFICE,400147520,"2,562.98"
DFID,DFID,09/03/2011,Technical & Advisory services,International Relations Division,FOREIGN AND COMMONWEALTH OFFICE,400147520,615.11
DFID,DFID,09/03/2011,Technical & Advisory services,International Relations Division,FOREIGN AND COMMONWEALTH OFFICE,400147520,3.46
DFID,DFID,09/03/2011,Technical & Advisory services,International Relations Division,FOREIGN AND COMMONWEALTH OFFICE,400147520,39.95
DFID,DFID,09/03/2011,Technical & Advisory services,International Relations Division,FOREIGN AND COMMONWEALTH OFFICE,400147520,18.82
DFID,DFID,09/03/2011,Technical & Advisory services,International Relations Division,FOREIGN AND COMMONWEALTH OFFICE,400147520,42.66
DFID,DFID,09/03/2011,Technical & Advisory services,International Relations Division,FOREIGN AND COMMONWEALTH OFFICE,400147520,3.46
DFID,DFID,09/03/2011,Technical & Advisory services,International Relations Division,FOREIGN AND COMMONWEALTH OFFICE,400147520,18.82
DFID,DFID,01/03/2011,Technical & Advisory services,Asia Division,GfK Mode Pvt. Ltd.,400145745,"48,720.29"
DFID,DFID,01/03/2011,Technical & Advisory services,Asia Division,GHK CONSULTING LTD,400145553,"44,087.00"
DFID,DFID,04/03/2011,Technical & Advisory services,Asia Division,GHK CONSULTING LTD,400146798,"12,824.00"
DFID,DFID,04/03/2011,Technical & Advisory services,Asia Division,GHK CONSULTING LTD,400146798,"28,767.00"
DFID,DFID,23/03/2011,Technical & Advisory services,Asia Division,GHK CONSULTING LTD,400150638,"62,887.00"
DFID,DFID,09/03/2011,Technical & Advisory services,Asia Division,GRM INTERNATIONAL LTD,400147522,"67,937.04"
DFID,DFID,09/03/2011,Technical & Advisory services,"Security & Humanitarian, Middle East, Caribbean & Overseas Territories Division",GRM INTERNATIONAL LTD,400147526,"95,687.71"
DFID,DFID,15/03/2011,Technical & Advisory services,Asia Division,GRM INTERNATIONAL LTD,400148746,"54,356.72"
DFID,DFID,15/03/2011,Technical & Advisory services,Asia Division,GRM INTERNATIONAL LTD,400148748,"84,159.49"
DFID,DFID,16/03/2011,Technical & Advisory services,Asia Division,GRM INTERNATIONAL LTD,400148970,"44,222.20"
DFID,DFID,16/03/2011,Technical & Advisory services,"Security & Humanitarian, Middle East, Caribbean & Overseas Territories Division",GRM INTERNATIONAL LTD,400149087,"167,659.61"
DFID,DFID,21/03/2011,Technical & Advisory services,West and Southern Africa,GRM INTERNATIONAL LTD,400149451,"101,304.17"
DFID,DFID,21/03/2011,Technical & Advisory services,West and Southern Africa,GRM INTERNATIONAL LTD,400149454,"506,028.15"
DFID,DFID,24/03/2011,Technical & Advisory services,West and Southern Africa,GRM INTERNATIONAL LTD,400151095,"248,499.08"
DFID,DFID,14/03/2011,Technical & Advisory services,West and Southern Africa,HAREWELLE INTERNATIONAL LIMITED,400147571,"34,495.77"
DFID,DFID,11/03/2011,Technical & Advisory services,East and Central Africa,HAREWELLE INTERNATIONAL LIMITED,400148134,"35,102.08"
DFID,DFID,17/03/2011,Technical & Advisory services,East and Central Africa,HAREWELLE INTERNATIONAL LIMITED,400149352,"66,864.90"
DFID,DFID,10/03/2011,Technical & Advisory services,Asia Division,Harewelle International Limited.,400147868,"91,354.30"
DFID,DFID,15/03/2011,Technical & Advisory services,Asia Division,Harewelle International Limited.,400148786,"26,409.23"
DFID,DFID,14/03/2011,Technical & Advisory services,International Finance Division,HAWKPOINT,400148457,"76,370.05"
DFID,DFID,10/03/2011,Technical & Advisory services,West and Southern Africa,HEALTH PARTNERS INTERNATIONAL,400146660,"462,319.83"
DFID,DFID,14/03/2011,Technical & Advisory services,Asia Division,HEALTH PARTNERS INTERNATIONAL,400148140,"32,051.87"
DFID,DFID,26/03/2011,Technical & Advisory services,West and Southern Africa,HEALTH PARTNERS INTERNATIONAL,400151065,"384,568.52"
DFID,DFID,24/03/2011,Technical & Advisory services,East and Central Africa,Health Research for Action (HERA),400150675,"120,687.73"
DFID,DFID,09/03/2011,Technical & Advisory services,Western Asia and Stabilisation Division,HLSP LIMITED,400147579,"57,833.37"
DFID,DFID,09/03/2011,Technical & Advisory services,Western Asia and Stabilisation Division,HLSP LIMITED,400147603,"79,571.63"
DFID,DFID,24/03/2011,Technical & Advisory services,West and Southern Africa,HLSP LIMITED,400150996,"615,250.31"
DFID,DFID,10/03/2011,Technical & Advisory services,Asia Division,Hogg Robinson Group,6000042,102.16
DFID,DFID,10/03/2011,Technical & Advisory services,Western Asia and Stabilisation Division,Hogg Robinson Group,6000042,920.13
DFID,DFID,31/03/2011,Technical & Advisory services,Asia Division,Hogg Robinson Group,6000044,725.02
DFID,DFID,31/03/2011,Technical & Advisory services,"Security & Humanitarian, Middle East, Caribbean & Overseas Territories Division",Hogg Robinson Group,6000044,20
DFID,DFID,31/03/2011,Technical & Advisory services,Western Asia and Stabilisation Division,Hogg Robinson Group,6000044,14.47
DFID,DFID,02/03/2011,Technical & Advisory services,Asia Division,HTSPE LTD,400146245,"75,228.90"
DFID,DFID,08/03/2011,Technical & Advisory services,West and Southern Africa,HTSPE LTD,400147266,"74,121.07"
DFID,DFID,08/03/2011,Technical & Advisory services,West and Southern Africa,HTSPE LTD,400147267,"478,472.83"
DFID,DFID,11/03/2011,Technical & Advisory services,Asia Division,HTSPE LTD,400148170,"47,513.33"
DFID,DFID,15/03/2011,Technical & Advisory services,West and Southern Africa,HTSPE LTD,400148364,"83,888.07"
DFID,DFID,18/03/2011,Technical & Advisory services,Western Asia and Stabilisation Division,HTSPE LTD,400148732,"28,028.40"
DFID,DFID,18/03/2011,Technical & Advisory services,Asia Division,INFRASTRUCTURE PROFESSIONALS ENTERPRISE,400149366,"25,364.59"
DFID,DFID,18/03/2011,Technical & Advisory services,Asia Division,INFRASTRUCTURE PROFESSIONALS ENTERPRISE,400149395,"25,364.59"
DFID,DFID,18/03/2011,Technical & Advisory services,Asia Division,INFRASTRUCTURE PROFESSIONALS ENTERPRISE,400149408,"39,352.83"
DFID,DFID,18/03/2011,Technical & Advisory services,Asia Division,INFRASTRUCTURE PROFESSIONALS ENTERPRISE,400149418,"25,364.59"
DFID,DFID,18/03/2011,Technical & Advisory services,Asia Division,INFRASTRUCTURE PROFESSIONALS ENTERPRISE,400149421,"67,639.27"
DFID,DFID,24/03/2011,Technical & Advisory services,Asia Division,INFRASTRUCTURE PROFESSIONALS ENTERPRISE,400150645,"35,546.96"
DFID,DFID,01/03/2011,Technical & Advisory services,Asia Division,Infrastructure Professionals Enterprise (P) Ltd.,400145756,"25,932.23"
DFID,DFID,29/03/2011,Technical & Advisory services,Asia Division,Infrastructure Professionals Enterprise (P) Ltd.,400152033,"45,792.62"
DFID,DFID,24/03/2011,Technical & Advisory services,Policy and Research Directorate,INSTITUTE OF DEVELOPMENT STUDIES,400150963,"26,261.75"
DFID,DFID,26/03/2011,Technical & Advisory services,Policy and Research Directorate,INSTITUTE OF DEVELOPMENT STUDIES,400151444,"47,285.00"
DFID,DFID,11/03/2011,Technical & Advisory services,West and Southern Africa,KPMG ANGOLA & MOZAMBIQUE,400144104,"44,009.34"
DFID,DFID,14/03/2011,Technical & Advisory services,Policy and Research Directorate,KPMG Development Services,400148136,"53,021.24"
DFID,DFID,01/03/2011,Technical & Advisory services,East and Central Africa,KPMG EAST AFRICA LTD,400145561,"126,959.00"
DFID,DFID,22/03/2011,Technical & Advisory services,East and Central Africa,KPMG EAST AFRICA LTD,400149971,"92,429.00"
DFID,DFID,22/03/2011,Technical & Advisory services,East and Central Africa,KPMG EAST AFRICA LTD,400149971,"162,581.00"
DFID,DFID,23/03/2011,Technical & Advisory services,East and Central Africa,KPMG EAST AFRICA LTD,400150297,"113,166.00"
DFID,DFID,23/03/2011,Technical & Advisory services,East and Central Africa,KPMG EAST AFRICA LTD,400150297,"857,050.00"
DFID,DFID,01/03/2011,Technical & Advisory services,West and Southern Africa,KPMG Inc.,400145480,"31,681.28"
DFID,DFID,14/03/2011,Technical & Advisory services,East and Central Africa,LIVERPOOL ASSOCIATES IN TROP. HEALTH,400148435,"176,056.17"
DFID,DFID,17/03/2011,Technical & Advisory services,West and Southern Africa,LIVERPOOL ASSOCIATES IN TROP. HEALTH,400149046,"28,188.46"
DFID,DFID,28/03/2011,Technical & Advisory services,Policy and Research Directorate,LIVERPOOL SCHOOL OF TROPICAL MEDICINE,400151791,"53,880.97"
DFID,DFID,23/03/2011,Technical & Advisory services,Policy and Research Directorate,LONDON SCHOOL OF ECONOMICS AND POLITICAL SCIENCE,400150112,"149,769.19"
DFID,DFID,23/03/2011,Technical & Advisory services,Policy and Research Directorate,LONDON SCHOOL OF ECONOMICS AND POLITICAL SCIENCE,400150112,"392,679.03"
DFID,DFID,23/03/2011,Technical & Advisory services,Policy and Research Directorate,LONDON SCHOOL OF ECONOMICS AND POLITICAL SCIENCE,400150112,"67,063.00"
DFID,DFID,23/03/2011,Technical & Advisory services,Policy and Research Directorate,LONDON SCHOOL OF ECONOMICS AND POLITICAL SCIENCE,400150322,"23,347.09"
DFID,DFID,23/03/2011,Technical & Advisory services,Policy and Research Directorate,LONDON SCHOOL OF ECONOMICS AND POLITICAL SCIENCE,400150322,"173,447.55"
DFID,DFID,23/03/2011,Technical & Advisory services,Policy and Research Directorate,LONDON SCHOOL OF ECONOMICS AND POLITICAL SCIENCE,400150322,"314,306.62"
DFID,DFID,03/03/2011,Technical & Advisory services,Policy and Research Directorate,LONDON SCHOOL OF HYGIENE AND TR,400146538,"483,700.70"
DFID,DFID,03/03/2011,Technical & Advisory services,Policy and Research Directorate,LONDON SCHOOL OF HYGIENE AND TR,400146541,"767,282.05"
DFID,DFID,09/03/2011,Technical & Advisory services,West and Southern Africa,MALARIA CONSORTIUM,400146866,"317,633.00"
DFID,DFID,09/03/2011,Technical & Advisory services,West and Southern Africa,MALARIA CONSORTIUM,400146866,"513,202.00"
DFID,DFID,21/03/2011,Technical & Advisory services,West and Southern Africa,MALARIA CONSORTIUM,400150060,"553,812.00"
DFID,DFID,21/03/2011,Technical & Advisory services,West and Southern Africa,MALARIA CONSORTIUM,400150060,"320,866.00"
DFID,DFID,11/03/2011,Technical & Advisory services,West and Southern Africa,Masdar (UK) Limited,400144619,"93,199.93"
DFID,DFID,18/03/2011,Technical & Advisory services,West and Southern Africa,Masdar (UK) Limited,400149456,"112,217.90"
DFID,DFID,21/03/2011,Technical & Advisory services,Asia Division,MAXWELL STAMP PLC,400150058,"246,980.74"
DFID,DFID,21/03/2011,Technical & Advisory services,Asia Division,MAXWELL STAMP PLC,400150097,"152,622.50"
DFID,DFID,28/03/2011,Technical & Advisory services,East and Central Africa,MAXWELL STAMP PLC,400151290,"121,904.78"
DFID,DFID,16/03/2011,Technical & Advisory services,Western Asia and Stabilisation Division,"McKinsey & Co, Inc UK",400149090,"237,600.00"
DFID,DFID,23/03/2011,Technical & Advisory services,Western Asia and Stabilisation Division,"McKinsey & Co, Inc UK",400150396,"321,950.00"
DFID,DFID,17/03/2011,Technical & Advisory services,"Security & Humanitarian, Middle East, Caribbean & Overseas Territories Division",MINES ADVISORY GROUP,400149064,"78,291.00"
DFID,DFID,17/03/2011,Technical & Advisory services,"Security & Humanitarian, Middle East, Caribbean & Overseas Territories Division",MINES ADVISORY GROUP,400149065,"79,579.00"
DFID,DFID,17/03/2011,Technical & Advisory services,"Security & Humanitarian, Middle East, Caribbean & Overseas Territories Division",MINES ADVISORY GROUP,400149080,"33,231.00"
DFID,DFID,17/03/2011,Technical & Advisory services,"Security & Humanitarian, Middle East, Caribbean & Overseas Territories Division",MINES ADVISORY GROUP,400149085,"232,297.00"
DFID,DFID,16/03/2011,Technical & Advisory services,Human Resources Division,MITIE Technical Facilities Management Ltd,400149032,748.27
DFID,DFID,16/03/2011,Technical & Advisory services,Human Resources Division,MITIE Technical Facilities Management Ltd,400149032,439.46
DFID,DFID,08/03/2011,Technical & Advisory services,"Security & Humanitarian, Middle East, Caribbean & Overseas Territories Division",MOTT MACDONALD LTD,400147012,"55,450.00"
DFID,DFID,15/03/2011,Technical & Advisory services,Western Asia and Stabilisation Division,MOTT MACDONALD LTD,400148446,"81,047.81"
DFID,DFID,16/03/2011,Technical & Advisory services,Western Asia and Stabilisation Division,MOTT MACDONALD LTD,400148664,"59,273.98"
DFID,DFID,18/03/2011,Technical & Advisory services,Western Asia and Stabilisation Division,MOTT MACDONALD LTD,400149351,"53,250.00"
DFID,DFID,02/03/2011,Technical & Advisory services,East and Central Africa,NAO VOTE A/C,400146253,"25,876.00"
DFID,DFID,31/03/2011,Technical & Advisory services,International Finance Division,NATHAN EME LTD,400152411,"37,685.44"
DFID,DFID,31/03/2011,Technical & Advisory services,International Finance Division,NATHAN EME LTD,400152411,"1,165.53"
DFID,DFID,10/03/2011,Technical & Advisory services,East and Central Africa,NATIONAL AUDIT OFFICE,400147542,"50,615.00"
DFID,DFID,15/03/2011,Technical & Advisory services,Communications Division,NATIONAL FOUNDATION FOR EDUCATIONAL RESEARCH,400148458,"99,361.00"
DFID,DFID,11/03/2011,Technical & Advisory services,East and Central Africa,NATIONAL SCHOOL OF GOVERNMENT,400148047,"33,316.06"
DFID,DFID,16/03/2011,Technical & Advisory services,West and Southern Africa,NATIONAL SCHOOL OF GOVERNMENT,400149059,"30,000.00"
DFID,DFID,04/03/2011,Technical & Advisory services,Asia Division,NATURAL RESOURCES INTERN,400146762,"30,140.55"
DFID,DFID,17/03/2011,Technical & Advisory services,Asia Division,NATURAL RESOURCES INTERN,400149282,"52,587.73"
DFID,DFID,31/03/2011,Technical & Advisory services,Human Resources Division,Natwest Government Procurement Card,100037,74.4
DFID,DFID,04/03/2011,Technical & Advisory services,East and Central Africa,NPIA,400146484,"33,439.56"
DFID,DFID,04/03/2011,Technical & Advisory services,East and Central Africa,NPIA,400146485,"40,289.48"
DFID,DFID,04/03/2011,Technical & Advisory services,East and Central Africa,NPIA,400146486,"38,329.25"
DFID,DFID,02/03/2011,Technical & Advisory services,West and Southern Africa,ONE WORLD,400146121,"30,008.00"
DFID,DFID,21/03/2011,Technical & Advisory services,West and Southern Africa,ONE WORLD,400146950,"37,123.00"
DFID,DFID,21/03/2011,Technical & Advisory services,West and Southern Africa,ONE WORLD,400146951,"35,995.00"
DFID,DFID,16/03/2011,Technical & Advisory services,West and Southern Africa,One World Sustainable Investment,400149053,"77,349.05"
DFID,DFID,10/03/2011,Technical & Advisory services,West and Southern Africa,OPTIONS CONSULTANCY SERVICES LIMITED,400147605,"111,489.98"
DFID,DFID,15/03/2011,Technical & Advisory services,West and Southern Africa,OPTIONS CONSULTANCY SERVICES LIMITED,400148438,"138,000.31"
DFID,DFID,16/03/2011,Technical & Advisory services,Asia Division,OPTIONS CONSULTANCY SERVICES LIMITED,400148690,"1,196,410.50"
DFID,DFID,16/03/2011,Technical & Advisory services,Asia Division,OPTIONS CONSULTANCY SERVICES LIMITED,400148690,"-855,228.00"
DFID,DFID,17/03/2011,Technical & Advisory services,Asia Division,OPTIONS CONSULTANCY SERVICES LIMITED,400149324,"52,149.00"
DFID,DFID,18/03/2011,Technical & Advisory services,Asia Division,OPTIONS CONSULTANCY SERVICES LIMITED,400149327,"73,347.00"
DFID,DFID,17/03/2011,Technical & Advisory services,Asia Division,OPTIONS CONSULTANCY SERVICES LIMITED,400149331,"26,460.36"
DFID,DFID,18/03/2011,Technical & Advisory services,Asia Division,OPTIONS CONSULTANCY SERVICES LIMITED,400149335,"52,324.58"
DFID,DFID,21/03/2011,Technical & Advisory services,Policy and Research Directorate,OVERSEAS DEVELOPMENT INSTITUTE,400147486,"179,058.09"
DFID,DFID,14/03/2011,Technical & Advisory services,Policy and Research Directorate,OVERSEAS DEVELOPMENT INSTITUTE (ODI),400148123,"69,590.00"
DFID,DFID,26/03/2011,Technical & Advisory services,Asia Division,OVERSEAS DEVELOPMENT INSTITUTE (ODI),400151442,"33,374.00"
DFID,DFID,02/03/2011,Technical & Advisory services,Western Asia and Stabilisation Division,OXFORD POLICY MANAGEMENT,400145589,"65,259.19"
DFID,DFID,03/03/2011,Technical & Advisory services,Western Asia and Stabilisation Division,OXFORD POLICY MANAGEMENT,400146194,"74,977.24"
DFID,DFID,03/03/2011,Technical & Advisory services,Western Asia and Stabilisation Division,OXFORD POLICY MANAGEMENT,400146202,"50,135.97"
DFID,DFID,11/03/2011,Technical & Advisory services,Western Asia and Stabilisation Division,OXFORD POLICY MANAGEMENT,400148098,"227,173.91"
DFID,DFID,11/03/2011,Technical & Advisory services,Western Asia and Stabilisation Division,OXFORD POLICY MANAGEMENT,400148098,"-150,135.97"
DFID,DFID,18/03/2011,Technical & Advisory services,Western Asia and Stabilisation Division,OXFORD POLICY MANAGEMENT,400149272,"76,681.53"
DFID,DFID,22/03/2011,Technical & Advisory services,International Relations Division,OXFORD POLICY MANAGEMENT,400150250,"153,366.11"
DFID,DFID,22/03/2011,Technical & Advisory services,Western Asia and Stabilisation Division,OXFORD POLICY MANAGEMENT,400150262,"88,526.33"
DFID,DFID,28/03/2011,Technical & Advisory services,Policy and Research Directorate,Perspectives GmbH,400151120,"70,000.00"
DFID,DFID,17/03/2011,Technical & Advisory services,"Security & Humanitarian, Middle East, Caribbean & Overseas Territories Division",PKF (UK) LLP,400149098,"55,243.26"
DFID,DFID,28/03/2011,Technical & Advisory services,International Relations Division,PKF (UK) LLP,400151785,"64,759.76"
DFID,DFID,28/03/2011,Technical & Advisory services,International Relations Division,PKF (UK) LLP,400151788,"155,837.68"
DFID,DFID,02/03/2011,Technical & Advisory services,International Finance Division,PRICEWATERHOUSECOOPERS,400145793,"62,706.24"
DFID,DFID,02/03/2011,Technical & Advisory services,East and Central Africa,PRICEWATERHOUSECOOPERS,400146069,"25,980.28"
DFID,DFID,14/03/2011,Technical & Advisory services,Policy and Research Directorate,PRICEWATERHOUSECOOPERS,400148442,"66,600.00"
DFID,DFID,25/03/2011,Technical & Advisory services,International Relations Division,PRICEWATERHOUSECOOPERS,400150108,"46,804.00"
DFID,DFID,24/03/2011,Technical & Advisory services,International Finance Division,PRICEWATERHOUSECOOPERS,400150329,"55,423.43"
DFID,DFID,25/03/2011,Technical & Advisory services,International Relations Division,PRICEWATERHOUSECOOPERS,400150341,"37,364.00"
DFID,DFID,23/03/2011,Technical & Advisory services,West and Southern Africa,PRICEWATERHOUSECOOPERS,400150674,"270,799.00"
DFID,DFID,23/03/2011,Technical & Advisory services,West and Southern Africa,PRICEWATERHOUSECOOPERS,400150674,"89,823.00"
DFID,DFID,23/03/2011,Technical & Advisory services,West and Southern Africa,PRICEWATERHOUSECOOPERS,400150674,"-50,713.00"
DFID,DFID,23/03/2011,Technical & Advisory services,West and Southern Africa,PRICEWATERHOUSECOOPERS,400150674,"262,991.00"
DFID,DFID,23/03/2011,Technical & Advisory services,West and Southern Africa,PRICEWATERHOUSECOOPERS,400150674,"-262,991.00"
DFID,DFID,26/03/2011,Technical & Advisory services,East and Central Africa,PRICEWATERHOUSECOOPERS,400151447,"26,389.40"
DFID,DFID,11/03/2011,Technical & Advisory services,Asia Division,PRICEWATERHOUSECOOPERS DEVELOPMENT,400148009,"38,045.00"
DFID,DFID,11/03/2011,Technical & Advisory services,Asia Division,PRICEWATERHOUSECOOPERS DEVELOPMENT,400148024,"45,472.00"
DFID,DFID,11/03/2011,Technical & Advisory services,Asia Division,PRICEWATERHOUSECOOPERS DEVELOPMENT,400148026,"38,045.00"
DFID,DFID,04/03/2011,Technical & Advisory services,International Relations Division,PUBLIC ADMINISTRATION INTERN,400145390,"49,521.90"
DFID,DFID,22/03/2011,Technical & Advisory services,International Relations Division,PUBLIC ADMINISTRATION INTERN,400150276,"38,474.53"
DFID,DFID,14/03/2011,Technical & Advisory services,West and Southern Africa,RE-ACTION,400147918,"134,834.00"
DFID,DFID,14/03/2011,Technical & Advisory services,West and Southern Africa,RE-ACTION,400147918,"35,675.34"
DFID,DFID,14/03/2011,Technical & Advisory services,West and Southern Africa,RE-ACTION,400147918,"-5,698.75"
DFID,DFID,28/03/2011,Technical & Advisory services,Western Asia and Stabilisation Division,REPIM,400151097,"29,776.28"
DFID,DFID,24/03/2011,Technical & Advisory services,West and Southern Africa,ROBERT C WEST,400150451,"31,820.00"
DFID,DFID,11/03/2011,Technical & Advisory services,West and Southern Africa,RSM Tenon Limited,400147185,"78,394.34"
DFID,DFID,09/03/2011,Technical & Advisory services,West and Southern Africa,RSM Tenon Limited,400147475,"37,077.83"
DFID,DFID,11/03/2011,Technical & Advisory services,Policy and Research Directorate,SAC COMMERCIAL LTD,400148104,"25,812.00"
DFID,DFID,23/03/2011,Technical & Advisory services,East and Central Africa,SAFERWORLD,400150711,"25,750.00"
DFID,DFID,14/03/2011,Technical & Advisory services,East and Central Africa,SAVE THE CHILDREN FUND,400148366,"590,330.00"
DFID,DFID,11/03/2011,Technical & Advisory services,West and Southern Africa,SCHOOL OF ORIENTAL & AFRICAN STUDIES,400146533,"52,242.14"
DFID,DFID,28/03/2011,Technical & Advisory services,"Security & Humanitarian, Middle East, Caribbean & Overseas Territories Division",Sea and Shore Projects (Pty) Ltd,400150992,"945,867.50"
DFID,DFID,28/03/2011,Technical & Advisory services,"Security & Humanitarian, Middle East, Caribbean & Overseas Territories Division",Sea and Shore Projects (Pty) Ltd,400150993,"313,161.98"
DFID,DFID,22/03/2011,Technical & Advisory services,Asia Division,SIDBI FOUNDATION,400149908,"1,006,269.85"
DFID,DFID,23/03/2011,Technical & Advisory services,Asia Division,SIDBI FOUNDATION,400150234,"407,861.08"
DFID,DFID,28/03/2011,Technical & Advisory services,Asia Division,SIDBI MUMBAI,400151534,"30,413.29"
DFID,DFID,10/03/2011,Technical & Advisory services,West and Southern Africa,Society for Family  Health,400147217,"1,112,864.85"
DFID,DFID,16/03/2011,Technical & Advisory services,Policy and Research Directorate,South African Institute of International Affairs,400148815,"33,550.00"
DFID,DFID,29/03/2011,Technical & Advisory services,"Security & Humanitarian, Middle East, Caribbean & Overseas Territories Division",Stephanie Murray,400152272,"64,379.61"
DFID,DFID,30/03/2011,Technical & Advisory services,"Security & Humanitarian, Middle East, Caribbean & Overseas Territories Division",Technical Procurement Services,400151272,"136,172.48"
DFID,DFID,16/03/2011,Technical & Advisory services,"Security & Humanitarian, Middle East, Caribbean & Overseas Territories Division",TECHNICAL PROCUREMENT SERVICES (USD),400148827,"70,778.96"
DFID,DFID,16/03/2011,Technical & Advisory services,"Security & Humanitarian, Middle East, Caribbean & Overseas Territories Division",TECHNICAL PROCUREMENT SERVICES (USD),400148827,"162,040.89"
DFID,DFID,02/03/2011,Technical & Advisory services,Policy and Research Directorate,THE CROWN AGENTS,400146124,"39,088.49"
DFID,DFID,02/03/2011,Technical & Advisory services,West and Southern Africa,THE CROWN AGENTS,400146139,"250,566.67"
DFID,DFID,04/03/2011,Technical & Advisory services,Western Asia and Stabilisation Division,THE CROWN AGENTS,400146463,"82,624.80"
DFID,DFID,03/03/2011,Technical & Advisory services,West and Southern Africa,THE CROWN AGENTS,400146552,"5,512.02"
DFID,DFID,07/03/2011,Technical & Advisory services,Central Department Division,THE CROWN AGENTS,400146761,"36,250.00"
DFID,DFID,10/03/2011,Technical & Advisory services,"Security & Humanitarian, Middle East, Caribbean & Overseas Territories Division",THE CROWN AGENTS,400146799,"24,000.00"
DFID,DFID,10/03/2011,Technical & Advisory services,"Security & Humanitarian, Middle East, Caribbean & Overseas Territories Division",THE CROWN AGENTS,400146799,"5,000.00"
DFID,DFID,04/03/2011,Technical & Advisory services,"Security & Humanitarian, Middle East, Caribbean & Overseas Territories Division",THE CROWN AGENTS,400146800,"24,000.00"
DFID,DFID,04/03/2011,Technical & Advisory services,"Security & Humanitarian, Middle East, Caribbean & Overseas Territories Division",THE CROWN AGENTS,400146800,"5,000.00"
DFID,DFID,08/03/2011,Technical & Advisory services,West and Southern Africa,THE CROWN AGENTS,400147172,"209,627.66"
DFID,DFID,08/03/2011,Technical & Advisory services,West and Southern Africa,THE CROWN AGENTS,400147172,-697.04
DFID,DFID,09/03/2011,Technical & Advisory services,Asia Division,THE CROWN AGENTS,400147461,"46,117.66"
DFID,DFID,14/03/2011,Technical & Advisory services,West and Southern Africa,THE CROWN AGENTS,400148363,"146,629.77"
DFID,DFID,14/03/2011,Technical & Advisory services,West and Southern Africa,THE CROWN AGENTS,400148363,"-45,727.37"
DFID,DFID,25/03/2011,Technical & Advisory services,West and Southern Africa,THE CROWN AGENTS,400148449,"61,994.85"
DFID,DFID,15/03/2011,Technical & Advisory services,West and Southern Africa,THE CROWN AGENTS,400148729,"37,974.71"
DFID,DFID,17/03/2011,Technical & Advisory services,West and Southern Africa,THE CROWN AGENTS,400149049,"2,902.95"
DFID,DFID,28/03/2011,Technical & Advisory services,Western Asia and Stabilisation Division,THE CROWN AGENTS,400149448,"74,000.00"
DFID,DFID,18/03/2011,Technical & Advisory services,West and Southern Africa,THE CROWN AGENTS,400149665,"298,353.74"
DFID,DFID,18/03/2011,Technical & Advisory services,"Security & Humanitarian, Middle East, Caribbean & Overseas Territories Division",THE CROWN AGENTS,400149700,"15,024.67"
DFID,DFID,18/03/2011,Technical & Advisory services,"Security & Humanitarian, Middle East, Caribbean & Overseas Territories Division",THE CROWN AGENTS,400149700,"23,968.65"
DFID,DFID,23/03/2011,Technical & Advisory services,Policy and Research Directorate,THE CROWN AGENTS,400150105,"36,490.30"
DFID,DFID,21/03/2011,Technical & Advisory services,East and Central Africa,THE CROWN AGENTS,400150124,"29,820.00"
DFID,DFID,23/03/2011,Technical & Advisory services,West and Southern Africa,THE CROWN AGENTS,400150658,"111,832.50"
DFID,DFID,28/03/2011,Technical & Advisory services,"Security & Humanitarian, Middle East, Caribbean & Overseas Territories Division",THE CROWN AGENTS,400151497,"24,000.00"
DFID,DFID,28/03/2011,Technical & Advisory services,"Security & Humanitarian, Middle East, Caribbean & Overseas Territories Division",THE CROWN AGENTS,400151497,"5,000.00"
DFID,DFID,18/03/2011,Technical & Advisory services,"Security & Humanitarian, Middle East, Caribbean & Overseas Territories Division",THE HALO TRUST,400149727,"200,683.00"
DFID,DFID,07/03/2011,Technical & Advisory services,East and Central Africa,THE IDL GROUP,400146515,"28,463.44"
DFID,DFID,14/03/2011,Technical & Advisory services,Policy and Research Directorate,THE IDL GROUP,400148121,"39,211.04"
DFID,DFID,02/03/2011,Technical & Advisory services,East and Central Africa,THE LAW DEVELOPMENT PARTNERSHIP LTD,400146112,"4,375.00"
DFID,DFID,02/03/2011,Technical & Advisory services,East and Central Africa,THE LAW DEVELOPMENT PARTNERSHIP LTD,400146112,"12,200.00"
DFID,DFID,02/03/2011,Technical & Advisory services,East and Central Africa,THE LAW DEVELOPMENT PARTNERSHIP LTD,400146112,"8,973.49"
DFID,DFID,10/03/2011,Technical & Advisory services,Western Asia and Stabilisation Division,THIRD PARTY MONIES,400147698,"87,446.14"
DFID,DFID,14/03/2011,Technical & Advisory services,Western Asia and Stabilisation Division,THIRD PARTY MONIES,400148299,"41,264.38"
DFID,DFID,15/03/2011,Technical & Advisory services,Evaluation Department,THIRD PARTY MONIES,400148538,"66,321.14"
DFID,DFID,15/03/2011,Technical & Advisory services,Western Asia and Stabilisation Division,THIRD PARTY MONIES,400148539,"60,479.96"
DFID,DFID,23/03/2011,Technical & Advisory services,"Security & Humanitarian, Middle East, Caribbean & Overseas Territories Division",THIRD PARTY MONIES,400150757,"55,146.98"
DFID,DFID,23/03/2011,Technical & Advisory services,"Security & Humanitarian, Middle East, Caribbean & Overseas Territories Division",THIRD PARTY MONIES,400150761,"62,548.79"
DFID,DFID,25/03/2011,Technical & Advisory services,"Security & Humanitarian, Middle East, Caribbean & Overseas Territories Division",THIRD PARTY MONIES,400151384,"49,209.01"
DFID,DFID,31/03/2011,Technical & Advisory services,East and Central Africa,THIRD PARTY MONIES,400152643,"32,388.75"
DFID,DFID,23/03/2011,Technical & Advisory services,East and Central Africa,TRADEMARK EAST AFRICA,400150410,"1,500,000.00"
DFID,DFID,09/03/2011,Technical & Advisory services,Asia Division,TRIBAL HELM CORPORATION LTD,400147148,"45,494.45"
DFID,DFID,02/03/2011,Technical & Advisory services,Policy and Research Directorate,Triple Line Consulting Limited,400146144,"134,563.86"
DFID,DFID,09/03/2011,Technical & Advisory services,Policy and Research Directorate,Triple Line Consulting Limited,400147608,"36,550.61"
DFID,DFID,23/03/2011,Technical & Advisory services,Policy and Research Directorate,Triple Line Consulting Limited,400150664,"9,722.02"
DFID,DFID,23/03/2011,Technical & Advisory services,Policy and Research Directorate,Triple Line Consulting Limited,400150664,"18,004.14"
DFID,DFID,25/03/2011,Technical & Advisory services,Policy and Research Directorate,TROPICAL HEALTH EDUCATION TRUST,400151010,"249,303.15"
DFID,DFID,28/03/2011,Technical & Advisory services,Asia Division,TURNER & TOWNSEND,400151796,"79,335.67"
DFID,DFID,28/03/2011,Technical & Advisory services,Asia Division,TURNER & TOWNSEND,400151798,"42,909.06"
DFID,DFID,28/03/2011,Technical & Advisory services,Asia Division,TURNER & TOWNSEND,400151799,"71,183.46"
DFID,DFID,21/03/2011,Technical & Advisory services,Asia Division,UNIVERSITY OF WOLVERHAMPTON,400150099,"280,163.46"
DFID,DFID,21/03/2011,Technical & Advisory services,Asia Division,UNIVERSITY OF WOLVERHAMPTON,400150102,"241,077.57"
DFID,DFID,08/03/2011,Technical & Advisory services,Policy and Research Directorate,WRENmedia,400146997,"26,752.72"
DFID,DFID,31/03/2011,Technical & Advisory services,Policy and Research Directorate,WRENmedia,400152717,"20,894.88"
DFID,DFID,16/03/2011,Technical & Advisory services,East and Central Africa,WSP INTERNATIONAL LIMITED,400142360,"63,613.00"
DFID,DFID,04/03/2011,Technical & Advisory services,"Security & Humanitarian, Middle East, Caribbean & Overseas Territories Division",WSP INTERNATIONAL LIMITED,400146694,"42,025.00"
DFID,DFID,04/03/2011,Technical & Advisory services,"Security & Humanitarian, Middle East, Caribbean & Overseas Territories Division",WSP INTERNATIONAL LIMITED,400146696,"45,462.50"
DFID,DFID,07/03/2011,Technical & Advisory services,East and Central Africa,WSP INTERNATIONAL LIMITED,400147001,"51,413.92"
DFID,DFID,08/03/2011,Technical & Advisory services,Asia Division,WSP INTERNATIONAL LIMITED,400147162,"953,416.76"
DFID,DFID,09/03/2011,Technical & Advisory services,Asia Division,WSP INTERNATIONAL LIMITED,400147173,"124,123.11"
DFID,DFID,17/03/2011,Technical & Advisory services,Asia Division,WSP INTERNATIONAL LIMITED,400149050,"596,026.42"
DFID,DFID,17/03/2011,Technical & Advisory services,Asia Division,WSP INTERNATIONAL LIMITED,400149050,"53,026.56"
DFID,DFID,25/03/2011,Technical & Advisory services,East and Central Africa,WSP INTERNATIONAL LIMITED,400151039,"25,100.00"
DFID,DFID,25/03/2011,Technical & Advisory services,East and Central Africa,WSP INTERNATIONAL LIMITED,400151390,"106,987.49"
DFID,DFID,31/03/2011,Vehicle Running Costs,West and Southern Africa,Natwest Government Procurement Card,100037,328
DFID,DFID,25/03/2011,Vehicle Running Costs,Western Asia and Stabilisation Division,THE CROWN AGENTS,400137991,193.25
